Workbook

Sheet INGRESO DE DATOS
O2: 24 years | P2: FALSE
O4: Descuento 24 años (por edad)
O5: age | P5: Discount (%) | Q5: Parameter | S5: Type | T5: Nuevo Negocio | V5: Región | W5: 2
O6: 24 | P6: 35 | Q6: =1-P6/100 -> 0.65 | T6: Renovación | W6: 3
O7: 25 | P7: 30 | Q7: =1-P7/100 -> 0.7 | W7: 4
O8: 26 | P8: 25 | Q8: 0.75 | W8: 5
O9: 27 | P9: 20 | Q9: 0.8 | W9: 6
O10: 28 | P10: 15 | Q10: 0.85 | W10: 8
O11: 29 | P11: 6 | Q11: 0.94 | W11: 9
O12: All ages | P12: 0 | Q12: 1 | W12: Guatemala
S13: Type selected | T13: 1 | V13: Selección | W13: 8
V14: Región | W14: =IF(W13=1,"2",IF(W13=2,3,IF(W13=3,4,IF(W13=4,5,IF(W13=4,5,IF(W13=5,6,IF(W13=6,8,IF(W13=7,9,IF(W13=8,"Guatemala"))))))))) -> Guatemala
O19: Descuento de 24 años: | P19: =IF(P2,_xlfn.SWITCH(C40,O6,Q6,O7,Q7,O8,Q8,O9,Q9,O10,Q10,O11,Q11,Q12),Q12) -> 1 | R19: IVA: 12% | S19: =12/100 -> 0.12 | T19: =S19+1 -> 1.12
O24: Descuento por variante de coaseguro | P24: N/A
O30: Descuento si es nuevo negocio (ENTRADA MANUAL)
O32: New business discount
P33: Complete | Q33: Premium | R33: Secure | S33: Essential | T33: Classic
O34: 0 | P34: 0 | Q34: 0 | R34: 0 | S34: 0 | T34: 0.15
A36: Nombre del Asegurado principal: | C36: John Doe
O37: Descuento combinado 24 años + Nuevo Negocio o Roneovaciones
A38: Número de adultos en la póliza: | C38: 2 | D38: Número de hijos en la póliza: | F38: 2
A40: Edad del titular: | C40: 32 | E40: Edad de cónyuge: | F40: 46 | O40: New business discount
P41: Complete | Q41: Premium | R41: Secure | S41: Essential | T41: Classic
H42: =IF(T13=1,"Essential y Classic Care Solamente","") -> Essential y Classic Care Solamente | O42: =1*$P$19 -> 1 | P42: =IF($T$13=1,IF($W$14="PERU2020", (1-O51)*$P$19,(1-P34)*$P$19),1*$P$19) -> 1 | Q42: =IF($T$13=1,IF($W$14="PERU2020", (1-O54)*$P$19,(1-Q34)*$P$19),1*$P$19) -> 1 | R42: =IF($T$13=1,IF($W$14="PERU2020", (1-O57)*$P$19,(1-R34)*$P$19),1*$P$19) -> 1 | S42: =IF($T$13=1,IF($W$14="PERU2020", (1-O60)*$P$19,(1-S34)*$P$19),1*$P$19) -> 1 | T42: =IF($T$13=1,IF($W$14="PERU2020", (1-O63)*$P$19,(1-T34)*$P$19),1*$P$19) -> 0.85
A44: Nombre de la Agencia : | C44: Agencia
O48: DISCOUNT PERU 2020
O50: EXCLUSIVE CARE
O51: 0.51
O53: PRIVILEGE CARE
O54: 0.51
O56: ADVANTAGE CARE
O57: 0.47
O59: SECURE CARE
O60: 0.54
O62: ESSENTIAL CARE
O63: 0.54

Sheet Bupa Complete Care
N1: RESUMEN DE BENEFICIOS | V1: RESUMEN DE BENEFICIOS
G2: TRUE | H2: FALSE
A5: Cotización de Seguro Médico Internacional Bupa Complete Care Tarifas en US$ | Validas: 1 de enero de 2024 | L5: REGIÓN
L7: =IF('INGRESO DE DATOS'!W14="Guatemala","GUATEMALA",'INGRESO DE DATOS'!W14) -> GUATEMALA
A13: Nombre del asegurado principal: | G13: =+'INGRESO DE DATOS'!$C$36 -> John Doe
A15: Broker/Agente | G15: =+'INGRESO DE DATOS'!$C$44 -> Agencia
B17: Número de Adultos en la Póliza | G17: =+'INGRESO DE DATOS'!$C$38 -> 2 | J17: Dependientes (menores de 24 años) | L17: =+'INGRESO DE DATOS'!$F$38 -> 2
J18: =IF('INGRESO DE DATOS'!$P$2=TRUE, "Cotización para dependiente de 24 años","") -> 
B19: Edad del Titular | G19: =+'INGRESO DE DATOS'!$C$40 -> 32 | J19: Edad del Cónyuge | L19: =+'INGRESO DE DATOS'!$F$40 -> 46
J21: Fecha de Cotización: | K21: =NOW() -> 2024-02-15T11:46:52.200
F29: DEDUCIBLES | G29: PLAN 1 | H29: PLAN 2 | I29: PLAN 3 | J29: PLAN 4 | K29: PLAN 5 | L29: PLAN 6
F30: Dentro del pais de residencia | G30: n/a | H30: 1000 | I30: 2000 | J30: 5000 | K30: 10000 | L30: 20000
F31: Fuera del pais de residencia | G31: n/a | H31: 2000 | I31: 3000 | J31: 5000 | K31: 10000 | L31: 20000
F34: TARIFAS ANUALES
F35: Prima de Titular | G35: n/a | H35: =VLOOKUP($G$19,Tablas!$A$10:$H$33,4,TRUE) -> 15160 | I35: =VLOOKUP($G$19,Tablas!$A$10:$H$33,5,TRUE) -> 11273 | J35: =VLOOKUP($G$19,Tablas!$A$10:$H$33,6,TRUE) -> 8222 | K35: =VLOOKUP($G$19,Tablas!$A$10:$H$33,7,TRUE) -> 6121 | L35: =VLOOKUP($G$19,Tablas!$A$10:$H$33,8,TRUE) -> 4682
F36: Prima de Cónyuge | G36: n/a | H36: =IF($G$17=1,0,(VLOOKUP($L$19,Tablas!$A$10:$H$33,4,TRUE))) -> 21980 | I36: =IF($G$17=1,0,(VLOOKUP($L$19,Tablas!$A$10:$H$33,5,TRUE))) -> 15443 | J36: =IF($G$17=1,0,(VLOOKUP($L$19,Tablas!$A$10:$H$33,6,TRUE))) -> 11448 | K36: =IF($G$17=1,0,(VLOOKUP($L$19,Tablas!$A$10:$H$33,7,TRUE))) -> 8456 | L36: =IF($G$17=1,0,(VLOOKUP($L$19,Tablas!$A$10:$H$33,8,TRUE))) -> 6477
F37: Primas Hijos | G37: n/a | H37: =IF($L$17=0,0,(VLOOKUP($L$17,Tablas!$A$34:$H$36,4,TRUE))) -> 7676 | I37: =IF($L$17=0,0,(VLOOKUP($L$17,Tablas!$A$34:$H$36,5,TRUE))) -> 5592 | J37: =IF($L$17=0,0,(VLOOKUP($L$17,Tablas!$A$34:$H$36,6,TRUE))) -> 4253 | K37: =IF($L$17=0,0,(VLOOKUP($L$17,Tablas!$A$34:$H$36,7,TRUE))) -> 3509 | L37: =IF($L$17=0,0,(VLOOKUP($L$17,Tablas!$A$34:$H$36,8,TRUE))) -> 2613
F38: Rider: Complicación de Maternidad | G38: n/a | H38: =+IF($G$2=FALSE,0,Tablas!D37) -> 0 | I38: =+IF($G$2=FALSE,0,Tablas!E37) -> 0 | J38: =+IF($G$2=FALSE,0,Tablas!F37) -> 225 | K38: =+IF($G$2=FALSE,0,Tablas!G37) -> 225 | L38: =+IF($G$2=FALSE,0,Tablas!H37) -> 225
F39: TOTAL PRIMA NETA | G39: n/a | H39: =SUM(H35:H38) -> 44816 | I39: =SUM(I35:I38) -> 32308 | J39: =SUM(J35:J38) -> 24148 | K39: =SUM(K35:K38) -> 18311 | L39: =SUM(L35:L38) -> 13997
F40: Costo Administrativo Anual | G40: n/a | H40: 75 | I40: 75 | J40: 75 | K40: 75 | L40: 75
F41: IVA (12%) | G41: n/a | H41: =SUM(H39:H40)*'INGRESO DE DATOS'!$S$19 -> 5386.92 | I41: =SUM(I39:I40)*'INGRESO DE DATOS'!$S$19 -> 3885.96 | J41: =SUM(J39:J40)*'INGRESO DE DATOS'!$S$19 -> 2906.76 | K41: =SUM(K39:K40)*'INGRESO DE DATOS'!$S$19 -> 2206.32 | L41: =SUM(L39:L40)*'INGRESO DE DATOS'!$S$19 -> 1688.64
F42: GRAN TOTAL: | G42: n/a | H42: =SUM(H39:H41) -> 50277.92 | I42: =SUM(I39:I41) -> 36268.96 | J42: 27129.76 | K42: 20592.32 | L42: 15760.64
F46: TARIFAS SEMESTRALES
F47: Prima de Titular | G47: n/a | H47: =VLOOKUP($G$19,Tablas!$A$45:$H$68,4,TRUE) -> 8034.8 | I47: =VLOOKUP($G$19,Tablas!$A$45:$H$68,5,TRUE) -> 5974.69 | J47: =VLOOKUP($G$19,Tablas!$A$45:$H$68,6,TRUE) -> 4357.66 | K47: =VLOOKUP($G$19,Tablas!$A$45:$H$68,7,TRUE) -> 3244.13 | L47: =VLOOKUP($G$19,Tablas!$A$45:$H$68,8,TRUE) -> 2481.46
F48: Prima de Cónyuge | G48: n/a | H48: =IF($G$17=1,0,(VLOOKUP($L$19,Tablas!$A$45:$H$68,4,TRUE))) -> 11649.4 | I48: =IF($G$17=1,0,(VLOOKUP($L$19,Tablas!$A$45:$H$68,5,TRUE))) -> 8184.79 | J48: =IF($G$17=1,0,(VLOOKUP($L$19,Tablas!$A$45:$H$68,6,TRUE))) -> 6067.44 | K48: =IF($G$17=1,0,(VLOOKUP($L$19,Tablas!$A$45:$H$68,7,TRUE))) -> 4481.68 | L48: =IF($G$17=1,0,(VLOOKUP($L$19,Tablas!$A$45:$H$68,8,TRUE))) -> 3432.81
F49: Primas Hijos | G49: n/a | H49: =IF($L$17=0,0,(VLOOKUP($L$17,Tablas!$A$69:$H$71,4,TRUE))) -> 4068.28 | I49: =IF($L$17=0,0,(VLOOKUP($L$17,Tablas!$A$69:$H$71,5,TRUE))) -> 2963.76 | J49: =IF($L$17=0,0,(VLOOKUP($L$17,Tablas!$A$69:$H$71,6,TRUE))) -> 2254.09 | K49: =IF($L$17=0,0,(VLOOKUP($L$17,Tablas!$A$69:$H$71,7,TRUE))) -> 1859.77 | L49: =IF($L$17=0,0,(VLOOKUP($L$17,Tablas!$A$69:$H$71,8,TRUE))) -> 1384.89
F50: Rider: Complicación de Maternidad | G50: n/a | H50: =+IF($G$2=FALSE,0,Tablas!D72) -> 0 | I50: =+IF($G$2=FALSE,0,Tablas!E72) -> 0 | J50: =+IF($G$2=FALSE,0,Tablas!F72) -> 119.25 | K50: =+IF($G$2=FALSE,0,Tablas!G72) -> 119.25 | L50: =+IF($G$2=FALSE,0,Tablas!H72) -> 119.25
F51: TOTAL PRIMA NETA | G51: n/a | H51: =SUM(H47:H50) -> 23752.48 | I51: =SUM(I47:I50) -> 17123.24 | J51: =SUM(J47:J50) -> 12798.44 | K51: =SUM(K47:K50) -> 9704.83 | L51: =SUM(L47:L50) -> 7418.41
F52: Costo Administrativo Anual | G52: n/a | H52: 75 | I52: 75 | J52: 75 | K52: 75 | L52: 75
F53: IVA (12%) | G53: n/a | H53: =SUM(H51:H52)*'INGRESO DE DATOS'!$S$19 -> 2859.2976 | I53: =SUM(I51:I52)*'INGRESO DE DATOS'!$S$19 -> 2063.7888 | J53: =SUM(J51:J52)*'INGRESO DE DATOS'!$S$19 -> 1544.8128 | K53: =SUM(K51:K52)*'INGRESO DE DATOS'!$S$19 -> 1173.5796 | L53: =SUM(L51:L52)*'INGRESO DE DATOS'!$S$19 -> 899.2092
F54: TOTAL (1ra Cuota) | G54: n/a | H54: =SUM(H51:H53) -> 26686.7776 | I54: =SUM(I51:I53) -> 19262.0288 | J54: 14418.2528 | K54: 10953.4096 | L54: 8392.6192
F55: TOTAL (2da Cuota) | G55: n/a | H55: =H54-H52*'INGRESO DE DATOS'!$T$19 -> 26602.7776 | I55: =I54-I52*'INGRESO DE DATOS'!$T$19 -> 19178.0288 | J55: =J54-J52*'INGRESO DE DATOS'!$T$19 -> 14334.2528 | K55: =K54-K52*'INGRESO DE DATOS'!$T$19 -> 10869.4096 | L55: =L54-L52*'INGRESO DE DATOS'!$T$19 -> 8308.6192
F56: GRAN TOTAL | G56: n/a | H56: =SUM(H54:H55) -> 53289.5552 | I56: =SUM(I54:I55) -> 38440.0576 | J56: 28752.5056 | K56: 21822.8192 | L56: 16701.2384
F59: TARIFAS TRIMESTRALES
F60: Prima de Titular | G60: n/a | H60: =VLOOKUP($G$19,Tablas!$A$79:$H$102,4,TRUE) -> 4169 | I60: =VLOOKUP($G$19,Tablas!$A$79:$H$102,5,TRUE) -> 3100.075 | J60: =VLOOKUP($G$19,Tablas!$A$79:$H$102,6,TRUE) -> 2261.05 | K60: =VLOOKUP($G$19,Tablas!$A$79:$H$102,7,TRUE) -> 1683.275 | L60: =VLOOKUP($G$19,Tablas!$A$79:$H$102,8,TRUE) -> 1287.55
F61: Prima de Cónyuge | G61: n/a | H61: =IF($G$17=1,0,(VLOOKUP($L$19,Tablas!$A$79:$H$102,4,TRUE))) -> 6044.5 | I61: =IF($G$17=1,0,(VLOOKUP($L$19,Tablas!$A$79:$H$102,5,TRUE))) -> 4246.825 | J61: =IF($G$17=1,0,(VLOOKUP($L$19,Tablas!$A$79:$H$102,6,TRUE))) -> 3148.2 | K61: =IF($G$17=1,0,(VLOOKUP($L$19,Tablas!$A$79:$H$102,7,TRUE))) -> 2325.4 | L61: =IF($G$17=1,0,(VLOOKUP($L$19,Tablas!$A$79:$H$102,8,TRUE))) -> 1781.175
F62: Primas Hijos | G62: n/a | H62: =IF($L$17=0,0,(VLOOKUP($L$17,Tablas!$A$103:$H$105,4,TRUE))) -> 2110.9 | I62: =IF($L$17=0,0,(VLOOKUP($L$17,Tablas!$A$103:$H$105,5,TRUE))) -> 1537.8 | J62: =IF($L$17=0,0,(VLOOKUP($L$17,Tablas!$A$103:$H$105,6,TRUE))) -> 1169.575 | K62: =IF($L$17=0,0,(VLOOKUP($L$17,Tablas!$A$103:$H$105,7,TRUE))) -> 964.975 | L62: =IF($L$17=0,0,(VLOOKUP($L$17,Tablas!$A$103:$H$105,8,TRUE))) -> 718.575
F63: Rider: Complicación de Maternidad | G63: n/a | H63: =+IF($G$2=FALSE,0,Tablas!D106) -> 0 | I63: =+IF($G$2=FALSE,0,Tablas!E106) -> 0 | J63: =+IF($G$2=FALSE,0,Tablas!F106) -> 61.875 | K63: =+IF($G$2=FALSE,0,Tablas!G106) -> 61.875 | L63: =+IF($G$2=FALSE,0,Tablas!H106) -> 61.875
F64: TOTAL PRIMA NETA | G64: n/a | H64: =SUM(H60:H63) -> 12324.4 | I64: =SUM(I60:I63) -> 8884.7 | J64: =SUM(J60:J63) -> 6640.7 | K64: =SUM(K60:K63) -> 5035.525 | L64: =SUM(L60:L63) -> 3849.175
F65: Costo Administrativo Anual | G65: n/a | H65: 75 | I65: 75 | J65: 75 | K65: 75 | L65: 75
F66: IVA (12%) | G66: n/a | H66: =SUM(H64:H65)*'INGRESO DE DATOS'!$S$19 -> 1487.928 | I66: =SUM(I64:I65)*'INGRESO DE DATOS'!$S$19 -> 1075.164 | J66: =SUM(J64:J65)*'INGRESO DE DATOS'!$S$19 -> 805.884 | K66: =SUM(K64:K65)*'INGRESO DE DATOS'!$S$19 -> 613.263 | L66: =SUM(L64:L65)*'INGRESO DE DATOS'!$S$19 -> 470.901
F67: TOTAL (1ra Cuota) | G67: n/a | H67: =SUM(H64:H66) -> 13887.328 | I67: =SUM(I64:I66) -> 10034.864 | J67: 7521.584 | K67: 5723.788 | L67: 4395.076
F68: TOTAL (2da a 4ta Cuota) | G68: n/a | H68: =H67-H65*'INGRESO DE DATOS'!$T$19 -> 13803.328 | I68: =I67-I65*'INGRESO DE DATOS'!$T$19 -> 9950.864 | J68: =J67-J65*'INGRESO DE DATOS'!$T$19 -> 7437.584 | K68: =K67-K65*'INGRESO DE DATOS'!$T$19 -> 5639.788 | L68: =L67-L65*'INGRESO DE DATOS'!$T$19 -> 4311.076
F69: GRAN TOTAL | G69: n/a | H69: =H67+H68*3 -> 55297.312 | I69: =I67+I68*3 -> 39887.456 | J69: 29834.336 | K69: 22643.152 | L69: 17328.304
F72: Este presupuesto solamente tiene carácter informativo y en ningún momento expresa compromiso legal para suministrarle cobertura de seguro. La emisión de una póliza de seguro Bupa está sujeta a todas las evaluaciones de riesgo por parte de Bupa y a la recepción de todos los pagos de prima requeridos.

Sheet Advantage (LA) (hidden)
A10: Cotización de Seguro Médico Internacional - Bupa ADVANTAGE Care (cobertura solo Latinoamérica)
A12: Bupa Advantage Care (cobertura solo en Latinoamérica) | H12: =+'INGRESO DE DATOS'!$C$36 -> John Doe
A13: Cobertura Máxima anual | C13: US $ 3,500,000
A14: Cobertura Geografica | C14: Limitada a Latinoamérica excluyendo México | H14: =+'INGRESO DE DATOS'!$C$44 -> Agencia
A15: Condiciones médicas cubiertas | C15: Todas las condiciones médicas
A16: Redes de proveedores | C16: Red de Proveedores "Bupa Advantage" | J16: =+'INGRESO DE DATOS'!$C$38 -> 2 | M16: =+'INGRESO DE DATOS'!$C$40 -> 32
A17: Opciones fuera de la Red | C17: NO, solo en casos de emergencia | F17: FECHA DE COTIZACION :
A18: Requiere preautorización | C18: SI, 30% de penalización por omitir prenotificación | F18: =NOW() -> 2024-02-15T11:46:52.200 | J18: =+'INGRESO DE DATOS'!$F$38 -> 2 | M18: =+'INGRESO DE DATOS'!$F$40 -> 46
A20: Número máximo de días de hospitalización | C20: Ilimitado | I20: TRUE | K20: COMPLICACIONES DE MATERNIDAD
A21: Habitación y alimentación | C21: 100% dentro de Red Bupa
C22: "UCR" para L.A. en emergencias fuera de Red Bupa | I22: TRUE | K22: TRASPLANTE DE ORGANOS
A23: Cuidados Intensivos | C23: 100% dentro de Red Bupa
C24: "UCR" para L.A. en emergencias fuera de Red Bupa
A25: Cobertura de Maternidad | C25: $5,000 (Excepto planes 4,5, y 6) | F25: Deducibles | H25: PLAN 1 | I25: PLAN 2 | J25: PLAN 3 | K25: PLAN 4 | L25: PLAN 5 | M25: PLAN 6
A26: Cobertura Provisional de Recién Nacido | C26: $30,000 por los primeros 90 días | F26: Dentro del pais de residencia | H26: n/a | I26: 1000 | J26: 2000 | K26: 5000 | L26: 10000 | M26: 20000
A27: Cuidado del Recién Nacido saludable | C27: Ya incluída dentro del beneficio de Maternidad | F27: Fuera del pais de residencia | H27: n/a | I27: 2000 | J27: 3000 | K27: 5000 | L27: 10000 | M27: 20000
A28: Cobertura de Complicaciones de Maternidad | C28: Disponible a través de cobertura opcional adicional
A29: Trasplante de Organos | C29: $1,000,000 de por vida, por diagnóstico
A30: Condiciones congénitas y hereditarias | C30: <18 años $300,000 de por vida; >=18 al 100% | F30: Tarifas Anuales
A31: Coberturas opcionales (Riders) | C31: Complicaciones de Maternidad por $500,000 | F31: Prima de Titular : | H31: n/a | I31: =VLOOKUP($M$16,Tablas!#REF!,4,TRUE) ->  | J31: =VLOOKUP($M$16,Tablas!#REF!,5,TRUE) ->  | K31: =VLOOKUP($M$16,Tablas!#REF!,6,TRUE) ->  | L31: =VLOOKUP($M$16,Tablas!#REF!,7,TRUE) ->  | M31: =VLOOKUP($M$16,Tablas!#REF!,8,TRUE) -> 
C32: Trasplante de órganos por $ 300,000 adicionales | F32: Prima de Cónyuge | H32: n/a | I32: =IF($J$16=1,0,(VLOOKUP($M$18,Tablas!#REF!,4,TRUE))) ->  | J32: =IF($J$16=1,0,(VLOOKUP($M$18,Tablas!#REF!,5,TRUE))) ->  | K32: =IF($J$16=1,0,(VLOOKUP($M$18,Tablas!#REF!,6,TRUE))) ->  | L32: =IF($J$16=1,0,(VLOOKUP($M$18,Tablas!#REF!,7,TRUE))) ->  | M32: =IF($J$16=1,0,(VLOOKUP($M$18,Tablas!#REF!,8,TRUE))) -> 
A33: Acompañamiento de menores hospitalizados | C33: $300 por día | F33: Primas Hijos : | H33: n/a | I33: =IF($J$18=0,0,(VLOOKUP($J$18,Tablas!#REF!,4,TRUE))) ->  | J33: =IF($J$18=0,0,(VLOOKUP($J$18,Tablas!#REF!,5,TRUE))) ->  | K33: =IF($J$18=0,0,(VLOOKUP($J$18,Tablas!#REF!,6,TRUE))) ->  | L33: =IF($J$18=0,0,(VLOOKUP($J$18,Tablas!#REF!,7,TRUE))) ->  | M33: =IF($J$18=0,0,(VLOOKUP($J$18,Tablas!#REF!,8,TRUE))) -> 
A34: Ambulancia aérea | C34: $100,000 por año y ticket aéreo de retorno | F34: Prima Rider Complic. Maternidad | H34: n/a | I34: =+IF($I$20=FALSE,0,Tablas!#REF!) ->  | J34: =+IF($I$20=FALSE,0,Tablas!#REF!) ->  | K34: =+IF($I$20=FALSE,0,Tablas!#REF!) ->  | L34: =+IF($I$20=FALSE,0,Tablas!#REF!) ->  | M34: =+IF($I$20=FALSE,0,Tablas!#REF!) -> 
A35: Repatriación restos mortales | C35: 1 | F35: Prima Rider Trasplante Organos | H35: n/a | I35: =IF($I$22=FALSE,0,Tablas!#REF!) ->  | J35: =IF($I$22=FALSE,0,Tablas!#REF!) ->  | K35: =IF($I$22=FALSE,0,Tablas!#REF!) ->  | L35: =IF($I$22=FALSE,0,Tablas!#REF!) ->  | M35: =IF($I$22=FALSE,0,Tablas!#REF!) -> 
A36: Medicamentos por receta | C36: $6,000 por Asegurado, por año póliza | F36: TOTAL PRIMA NETA : | H36: n/a | I36: =SUM(I31:I35) -> 
A37: Almacenamiento de sangre de cordon umbilical | C37: $500 (Excepto planes 4,5, y 6) | F37: Costo Administrativo Anual : | H37: n/a | I37: 75 | J37: 75 | K37: 75 | L37: 75 | M37: 75
F38: GRAN TOTAL : | H38: n/a | I38: =SUM(I36:I37) ->  | J38: =SUM(J36:J37) ->  | K38: =SUM(K36:K37) ->  | L38: =SUM(L36:L37) ->  | M38: =SUM(M36:M37) -> 
A39: Atención médica en el hogar | C39: 100% de usual/acostumbrado y razonable
A40: Rehabilitación | C40: 100% de usual/acostumbrado y razonable | F40: Tarifas Semestrales
A41: Residencia y cuidados paliativos | C41: 100% de usual/acostumbrado y razonable | F41: Prima de Titular : | H41: n/a | I41: =VLOOKUP($M$16,Tablas!#REF!,4,TRUE) ->  | J41: =VLOOKUP($M$16,Tablas!#REF!,5,TRUE) ->  | K41: =VLOOKUP($M$16,Tablas!#REF!,6,TRUE) ->  | L41: =VLOOKUP($M$16,Tablas!#REF!,7,TRUE) ->  | M41: =VLOOKUP($M$16,Tablas!#REF!,8,TRUE) -> 
A42: Cobertura de actividades peligrosas | C42: 1 | F42: Prima de Cónyuge | H42: n/a | I42: =IF($J$16=1,0,(VLOOKUP($M$18,Tablas!#REF!,4,TRUE))) ->  | J42: =IF($J$16=1,0,(VLOOKUP($M$18,Tablas!#REF!,5,TRUE))) ->  | K42: =IF($J$16=1,0,(VLOOKUP($M$18,Tablas!#REF!,6,TRUE))) ->  | L42: =IF($J$16=1,0,(VLOOKUP($M$18,Tablas!#REF!,7,TRUE))) ->  | M42: =IF($J$16=1,0,(VLOOKUP($M$18,Tablas!#REF!,8,TRUE))) -> 
A43: Chequeos generales de rutina | C43: Hasta US$150 por año póliza.Sin deducible | F43: Primas Hijos : | H43: n/a | I43: =IF($J$18=0,0,(VLOOKUP($J$18,Tablas!#REF!,4,TRUE))) ->  | J43: =IF($J$18=0,0,(VLOOKUP($J$18,Tablas!#REF!,5,TRUE))) ->  | K43: =IF($J$18=0,0,(VLOOKUP($J$18,Tablas!#REF!,6,TRUE))) ->  | L43: =IF($J$18=0,0,(VLOOKUP($J$18,Tablas!#REF!,7,TRUE))) ->  | M43: =IF($J$18=0,0,(VLOOKUP($J$18,Tablas!#REF!,8,TRUE))) -> 
A44: Cobertura de VIH, SIDA, CAS | C44: Solo como efecto de transfusión de sangre | F44: Prima Rider Complic. Maternidad | H44: n/a | I44: =+IF($I$20=FALSE,0,Tablas!#REF!) ->  | J44: =+IF($I$20=FALSE,0,Tablas!#REF!) ->  | K44: =+IF($I$20=FALSE,0,Tablas!#REF!) ->  | L44: =+IF($I$20=FALSE,0,Tablas!#REF!) ->  | M44: =+IF($I$20=FALSE,0,Tablas!#REF!) -> 
A45: Cobertura de brazos y piernas artificiales | C45: $30,000 por año y hasta $120,000 de por vida | F45: Prima Rider Trasplante Organos | H45: n/a | I45: =IF($I$22=FALSE,0,Tablas!#REF!) ->  | J45: =IF($I$22=FALSE,0,Tablas!#REF!) ->  | K45: =IF($I$22=FALSE,0,Tablas!#REF!) ->  | L45: =IF($I$22=FALSE,0,Tablas!#REF!) ->  | M45: =IF($I$22=FALSE,0,Tablas!#REF!) -> 
A46: Cobertura extendida para dependientes en caso de muerte de asegurado principal | C46: 2 años sin costo | F46: TOTAL PRIMA NETA : | H46: n/a | I46: =SUM(I41:I45) -> 
F47: Costo Administrativo Anual : | H47: n/a | I47: 75 | J47: 75 | K47: 75 | L47: 75 | M47: 75
F48: GRAN TOTAL (1ra Cuota) : | H48: n/a | I48: =SUM(I46:I47) ->  | J48: =SUM(J46:J47) ->  | K48: =SUM(K46:K47) ->  | L48: =SUM(L46:L47) ->  | M48: =SUM(M46:M47) -> 
F49: GRAN TOTAL (2da Cuota) : | H49: n/a | I49: =I46 ->  | J49: =J46 -> 
F50: Tarifas en US $ - Válidas desde 01 Ene 2013

Sheet Bupa Premium Care
N1: RESUMEN DE BENEFICIOS | V1: RESUMEN DE BENEFICIOS
G2: TRUE | H2: TRUE
G3: TRUE
A5: Cotización de Seguro Médico Internacional Bupa Premium Care Tarifas en US$ | Validas: 1 de enero de 2024 | L5: REGIÓN
L7: =IF('INGRESO DE DATOS'!W14="Guatemala","GUATEMALA",'INGRESO DE DATOS'!W14) -> GUATEMALA
A13: Nombre del asegurado principal: | G13: =+'INGRESO DE DATOS'!$C$36 -> John Doe
A15: Broker/Agente | G15: =+'INGRESO DE DATOS'!$C$44 -> Agencia
B17: Número de Adultos en la Póliza | G17: =+'INGRESO DE DATOS'!$C$38 -> 2 | J17: Dependientes (menores de 24 años) | L17: =+'INGRESO DE DATOS'!$F$38 -> 2
J18: =IF('INGRESO DE DATOS'!$P$2=TRUE, "Cotización para dependiente de 24 años","") -> 
B19: Edad del Titular | G19: =+'INGRESO DE DATOS'!$C$40 -> 32 | J19: Edad del Cónyuge | L19: =+'INGRESO DE DATOS'!$F$40 -> 46
J23: Fecha de Cotización: | K23: =NOW() -> 2024-02-15T11:46:52.200
F31: DEDUCIBLES | G31: PLAN 1 | H31: PLAN 2 | I31: PLAN 3 | J31: PLAN 4 | K31: PLAN 5 | L31: PLAN 6
F32: Dentro del pais de residencia | G32: n/a | H32: 1000 | I32: 2000 | J32: 5000 | K32: 10000 | L32: 20000
F33: Fuera del pais de residencia | G33: n/a | H33: 2000 | I33: 3000 | J33: 5000 | K33: 10000 | L33: 20000
F36: TARIFAS ANUALES
F37: Prima de Titular | G37: n/a | H37: =VLOOKUP($G$19,Tablas!$A$677:$H$739,4,TRUE) -> 9087 | I37: =VLOOKUP($G$19,Tablas!$A$677:$H$739,5,TRUE) -> 6958 | J37: =VLOOKUP($G$19,Tablas!$A$677:$H$739,6,TRUE) -> 5092 | K37: =VLOOKUP($G$19,Tablas!$A$677:$H$739,7,TRUE) -> 3794 | L37: =VLOOKUP($G$19,Tablas!$A$677:$H$739,8,TRUE) -> 2936
F38: Prima de Cónyuge | G38: n/a | H38: =IF($G$17=1,0,(VLOOKUP($L$19,Tablas!$A$677:$H$739,4,TRUE))) -> 12820 | I38: =IF($G$17=1,0,(VLOOKUP($L$19,Tablas!$A$677:$H$739,5,TRUE))) -> 10246 | J38: =IF($G$17=1,0,(VLOOKUP($L$19,Tablas!$A$677:$H$739,6,TRUE))) -> 7914 | K38: =IF($G$17=1,0,(VLOOKUP($L$19,Tablas!$A$677:$H$739,7,TRUE))) -> 5870 | L38: =IF($G$17=1,0,(VLOOKUP($L$19,Tablas!$A$677:$H$739,8,TRUE))) -> 4039
F39: Primas Hijos | G39: n/a | H39: =IF($L$17=0,0,(VLOOKUP($L$17,Tablas!$A$740:$H$742,4,TRUE))) -> 5416 | I39: =IF($L$17=0,0,(VLOOKUP($L$17,Tablas!$A$740:$H$742,5,TRUE))) -> 3740 | J39: =IF($L$17=0,0,(VLOOKUP($L$17,Tablas!$A$740:$H$742,6,TRUE))) -> 2766 | K39: =IF($L$17=0,0,(VLOOKUP($L$17,Tablas!$A$740:$H$742,7,TRUE))) -> 2388 | L39: =IF($L$17=0,0,(VLOOKUP($L$17,Tablas!$A$740:$H$742,8,TRUE))) -> 1591
F40: Rider: Complicación de Maternidad | G40: n/a | H40: =+IF($G$2=FALSE,0,Tablas!D743) -> 225 | I40: =+IF($G$2=FALSE,0,Tablas!E743) -> 225 | J40: =+IF($G$2=FALSE,0,Tablas!F743) -> 225 | K40: =+IF($G$2=FALSE,0,Tablas!G743) -> 225 | L40: =+IF($G$2=FALSE,0,Tablas!H743) -> 225
F41: Rider: Trasplante Órganos | G41: n/a | H41: =+IF($H$2=FALSE,0,Tablas!D744) -> 300 | I41: =+IF($H$2=FALSE,0,Tablas!E744) -> 300 | J41: =+IF($H$2=FALSE,0,Tablas!F744) -> 300 | K41: =+IF($H$2=FALSE,0,Tablas!G744) -> 300 | L41: =+IF($H$2=FALSE,0,Tablas!H744) -> 300
F42: Rider: Eliminación de Deducible | G42: n/a | H42: =+IF($G$3=FALSE,0,Tablas!D745) -> 180 | I42: =+IF($G$3=FALSE,0,Tablas!E745) -> 345 | J42: =+IF($G$3=FALSE,0,Tablas!F745) -> 775 | K42: =+IF($G$3=FALSE,0,Tablas!G745) -> 1330 | L42: =+IF($G$3=FALSE,0,Tablas!H745) -> 2080
F43: TOTAL PRIMA NETA | G43: n/a | H43: =SUM(H37:H42) -> 28028 | I43: =SUM(I37:I42) -> 21814 | J43: 17072 | K43: 13907 | L43: 11171
F44: Costo Administrativo Anual | G44: n/a | H44: 75 | I44: 75 | J44: 75 | K44: 75 | L44: 75
F45: IVA (12%) | G45: n/a | H45: =SUM(H43:H44)*'INGRESO DE DATOS'!$S$19 -> 3372.36 | I45: =SUM(I43:I44)*'INGRESO DE DATOS'!$S$19 -> 2626.68 | J45: =SUM(J43:J44)*'INGRESO DE DATOS'!$S$19 -> 2057.64 | K45: =SUM(K43:K44)*'INGRESO DE DATOS'!$S$19 -> 1677.84 | L45: =SUM(L43:L44)*'INGRESO DE DATOS'!$S$19 -> 1349.52
F46: GRAN TOTAL: | G46: n/a | H46: =SUM(H43:H45) -> 31475.36 | I46: =SUM(I43:I45) -> 24515.68 | J46: 19204.64 | K46: 15659.84 | L46: 12595.52
F49: TARIFAS SEMESTRALES
F50: Prima de Titular | G50: n/a | H50: =VLOOKUP($G$19,Tablas!$A$752:$H$814,4,TRUE) -> 4816.11 | I50: =VLOOKUP($G$19,Tablas!$A$752:$H$814,5,TRUE) -> 3687.74 | J50: =VLOOKUP($G$19,Tablas!$A$752:$H$814,6,TRUE) -> 2698.76 | K50: =VLOOKUP($G$19,Tablas!$A$752:$H$814,7,TRUE) -> 2010.82 | L50: =VLOOKUP($G$19,Tablas!$A$752:$H$814,8,TRUE) -> 1556.08
F51: Prima de Cónyuge | G51: n/a | H51: =IF($G$17=1,0,(VLOOKUP($L$19,Tablas!$A$752:$H$814,4,TRUE))) -> 6794.6 | I51: =IF($G$17=1,0,(VLOOKUP($L$19,Tablas!$A$752:$H$814,5,TRUE))) -> 5430.38 | J51: =IF($G$17=1,0,(VLOOKUP($L$19,Tablas!$A$752:$H$814,6,TRUE))) -> 4194.42 | K51: =IF($G$17=1,0,(VLOOKUP($L$19,Tablas!$A$752:$H$814,7,TRUE))) -> 3111.1 | L51: =IF($G$17=1,0,(VLOOKUP($L$19,Tablas!$A$752:$H$814,8,TRUE))) -> 2140.67
F52: Primas Hijos | G52: n/a | H52: =IF($L$17=0,0,(VLOOKUP($L$17,Tablas!$A$815:$H$817,4,TRUE))) -> 2870.48 | I52: =IF($L$17=0,0,(VLOOKUP($L$17,Tablas!$A$815:$H$817,5,TRUE))) -> 1982.2 | J52: =IF($L$17=0,0,(VLOOKUP($L$17,Tablas!$A$815:$H$817,6,TRUE))) -> 1465.98 | K52: =IF($L$17=0,0,(VLOOKUP($L$17,Tablas!$A$815:$H$817,7,TRUE))) -> 1265.64 | L52: =IF($L$17=0,0,(VLOOKUP($L$17,Tablas!$A$815:$H$817,8,TRUE))) -> 843.23
F53: Rider: Complicación de Maternidad | G53: n/a | H53: =+IF($G$2=FALSE,0,Tablas!D818) -> 119.25 | I53: =+IF($G$2=FALSE,0,Tablas!E818) -> 119.25 | J53: =+IF($G$2=FALSE,0,Tablas!F818) -> 119.25 | K53: =+IF($G$2=FALSE,0,Tablas!G818) -> 119.25 | L53: =+IF($G$2=FALSE,0,Tablas!H818) -> 119.25
F54: Rider: Trasplante Órganos | G54: n/a | H54: =+IF($H$2=FALSE,0,Tablas!D819) -> 159 | I54: =+IF($H$2=FALSE,0,Tablas!E819) -> 159 | J54: =+IF($H$2=FALSE,0,Tablas!F819) -> 159 | K54: =+IF($H$2=FALSE,0,Tablas!G819) -> 159 | L54: =+IF($H$2=FALSE,0,Tablas!H819) -> 159
F55: Rider: Eliminación de Deducible | G55: n/a | H55: =+IF($G$3=FALSE,0,Tablas!D820) -> 95.4 | I55: =+IF($G$3=FALSE,0,Tablas!E820) -> 182.85 | J55: =+IF($G$3=FALSE,0,Tablas!F820) -> 410.75 | K55: =+IF($G$3=FALSE,0,Tablas!G820) -> 704.9 | L55: =+IF($G$3=FALSE,0,Tablas!H820) -> 1102.4
F56: TOTAL PRIMA NETA | G56: n/a | H56: =SUM(H50:H55) -> 14854.84 | I56: =SUM(I50:I55) -> 11561.42 | J56: =SUM(J50:J55) -> 9048.16 | K56: =SUM(K50:K55) -> 7370.71 | L56: =SUM(L50:L55) -> 5920.63
F57: Costo Administrativo Anual | G57: n/a | H57: 75 | I57: 75 | J57: 75 | K57: 75 | L57: 75
F58: IVA (12%) | G58: n/a | H58: =SUM(H56:H57)*'INGRESO DE DATOS'!$S$19 -> 1791.5808 | I58: =SUM(I56:I57)*'INGRESO DE DATOS'!$S$19 -> 1396.3704 | J58: =SUM(J56:J57)*'INGRESO DE DATOS'!$S$19 -> 1094.7792 | K58: =SUM(K56:K57)*'INGRESO DE DATOS'!$S$19 -> 893.4852 | L58: =SUM(L56:L57)*'INGRESO DE DATOS'!$S$19 -> 719.4756
F59: TOTAL (1ra Cuota) | G59: n/a | H59: =SUM(H56:H58) -> 16721.4208 | I59: =SUM(I56:I58) -> 13032.7904 | J59: 10217.9392 | K59: 8339.1952 | L59: 6715.1056
F60: TOTAL (2da Cuota) | G60: n/a | H60: =H59-H57*'INGRESO DE DATOS'!$T$19 -> 16637.4208 | I60: =I59-I57*'INGRESO DE DATOS'!$T$19 -> 12948.7904 | J60: =J59-J57*'INGRESO DE DATOS'!$T$19 -> 10133.9392 | K60: =K59-K57*'INGRESO DE DATOS'!$T$19 -> 8255.1952 | L60: =L59-L57*'INGRESO DE DATOS'!$T$19 -> 6631.1056
F61: GRAN TOTAL | G61: n/a | H61: =SUM(H59:H60) -> 33358.8416 | I61: =SUM(I59:I60) -> 25981.5808 | J61: 20351.8784 | K61: 16594.3904 | L61: 13346.2112
F64: TARIFAS TRIMESTRALES
F65: Prima de Titular | G65: n/a | H65: =VLOOKUP($G$19,Tablas!$A$828:$H$890,4,TRUE) -> 2498.925 | I65: =VLOOKUP($G$19,Tablas!$A$828:$H$890,5,TRUE) -> 1913.45 | J65: =VLOOKUP($G$19,Tablas!$A$828:$H$890,6,TRUE) -> 1400.3 | K65: =VLOOKUP($G$19,Tablas!$A$828:$H$890,7,TRUE) -> 1043.35 | L65: =VLOOKUP($G$19,Tablas!$A$828:$H$890,8,TRUE) -> 807.4
F66: Prima de Cónyuge | G66: n/a | H66: =IF($G$17=1,0,(VLOOKUP($L$19,Tablas!$A$828:$H$890,4,TRUE))) -> 3525.5 | I66: =IF($G$17=1,0,(VLOOKUP($L$19,Tablas!$A$828:$H$890,5,TRUE))) -> 2817.65 | J66: =IF($G$17=1,0,(VLOOKUP($L$19,Tablas!$A$828:$H$890,6,TRUE))) -> 2176.35 | K66: =IF($G$17=1,0,(VLOOKUP($L$19,Tablas!$A$828:$H$890,7,TRUE))) -> 1614.25 | L66: =IF($G$17=1,0,(VLOOKUP($L$19,Tablas!$A$828:$H$890,8,TRUE))) -> 1110.725
F67: Primas Hijos | G67: n/a | H67: =IF($L$17=0,0,(VLOOKUP($L$17,Tablas!$A$891:$H$893,4,TRUE))) -> 1489.4 | I67: =IF($L$17=0,0,(VLOOKUP($L$17,Tablas!$A$891:$H$893,5,TRUE))) -> 1028.5 | J67: =IF($L$17=0,0,(VLOOKUP($L$17,Tablas!$A$891:$H$893,6,TRUE))) -> 760.65 | K67: =IF($L$17=0,0,(VLOOKUP($L$17,Tablas!$A$891:$H$893,7,TRUE))) -> 656.7 | L67: =IF($L$17=0,0,(VLOOKUP($L$17,Tablas!$A$891:$H$893,8,TRUE))) -> 437.525
F68: Rider: Complicación de Maternidad | G68: n/a | H68: =+IF($G$2=FALSE,0,Tablas!D894) -> 61.875 | I68: =+IF($G$2=FALSE,0,Tablas!E894) -> 61.875 | J68: =+IF($G$2=FALSE,0,Tablas!F894) -> 61.875 | K68: =+IF($G$2=FALSE,0,Tablas!G894) -> 61.875 | L68: =+IF($G$2=FALSE,0,Tablas!H894) -> 61.875
F69: Rider: Trasplante Órganos | G69: n/a | H69: =+IF($H$2=FALSE,0,Tablas!D895) -> 82.5 | I69: =+IF($H$2=FALSE,0,Tablas!E895) -> 82.5 | J69: =+IF($H$2=FALSE,0,Tablas!F895) -> 82.5 | K69: =+IF($H$2=FALSE,0,Tablas!G895) -> 82.5 | L69: =+IF($H$2=FALSE,0,Tablas!H895) -> 82.5
F70: Rider: Eliminación de Deducible | G70: n/a | H70: =+IF($G$3=FALSE,0,Tablas!D896) -> 49.5 | I70: =+IF($G$3=FALSE,0,Tablas!E896) -> 94.875 | J70: =+IF($G$3=FALSE,0,Tablas!F896) -> 213.125 | K70: =+IF($G$3=FALSE,0,Tablas!G896) -> 365.75 | L70: =+IF($G$3=FALSE,0,Tablas!H896) -> 572
F71: TOTAL PRIMA NETA | G71: n/a | H71: =SUM(H65:H70) -> 7707.7 | I71: =SUM(I65:I70) -> 5998.85 | J71: =SUM(J65:J70) -> 4694.8 | K71: =SUM(K65:K70) -> 3824.425 | L71: =SUM(L65:L70) -> 3072.025
F72: Costo Administrativo Anual | G72: n/a | H72: 75 | I72: 75 | J72: 75 | K72: 75 | L72: 75
F73: IVA (12%) | G73: n/a | H73: =SUM(H71:H72)*'INGRESO DE DATOS'!$S$19 -> 933.924 | I73: =SUM(I71:I72)*'INGRESO DE DATOS'!$S$19 -> 728.862 | J73: =SUM(J71:J72)*'INGRESO DE DATOS'!$S$19 -> 572.376 | K73: =SUM(K71:K72)*'INGRESO DE DATOS'!$S$19 -> 467.931 | L73: =SUM(L71:L72)*'INGRESO DE DATOS'!$S$19 -> 377.643
F74: TOTAL (1ra Cuota) | G74: n/a | H74: =SUM(H71:H73) -> 8716.624 | I74: =SUM(I71:I73) -> 6802.712 | J74: 5342.176 | K74: 4367.356 | L74: 3524.668
F75: TOTAL (2da a 4ta Cuota) | G75: n/a | H75: =H74-H72*'INGRESO DE DATOS'!$T$19 -> 8632.624 | I75: =I74-I72*'INGRESO DE DATOS'!$T$19 -> 6718.712 | J75: =J74-J72*'INGRESO DE DATOS'!$T$19 -> 5258.176 | K75: =K74-K72*'INGRESO DE DATOS'!$T$19 -> 4283.356 | L75: =L74-L72*'INGRESO DE DATOS'!$T$19 -> 3440.668
F76: GRAN TOTAL | G76: n/a | H76: =H74+H75*3 -> 34614.496 | I76: =I74+I75*3 -> 26958.848 | J76: 21116.704 | K76: 17217.424 | L76: 13846.672
F81: Este presupuesto solamente tiene carácter informativo y en ningún momento expresa compromiso legal para suministrarle cobertura de seguro. La emisión de una póliza de seguro Bupa está sujeta a todas las evaluaciones de riesgo por parte de Bupa y a la recepción de todos los pagos de prima requeridos.

Sheet Bupa Secure Care
B1: TRUE | C1: TRUE | I1: RESUMEN DE BENEFICIOS | Q1: RESUMEN DE BENEFICIOS
A5: Cotización de Seguro Médico Internacional Bupa Secure Care Tarifas en US$ | Validas: 1 de enero de 2024 | G5: REGIÓN
G7: =IF('INGRESO DE DATOS'!W14="Guatemala","GUATEMALA",'INGRESO DE DATOS'!W14) -> GUATEMALA
A13: Nombre del asegurado principal | B13: =+'INGRESO DE DATOS'!$C$36 -> John Doe
A15: Broker/Agente | B15: =+'INGRESO DE DATOS'!$C$44 -> Agencia
A17: Número de Adultos en la Póliza | B17: =+'INGRESO DE DATOS'!$C$38 -> 2 | D17: Dependientes (menores de 24 años) | G17: =+'INGRESO DE DATOS'!$F$38 -> 2
D18: =IF('INGRESO DE DATOS'!$P$2=TRUE, "Cotización para dependiente de 24 años","") -> 
A19: Edad del Titular | B19: =+'INGRESO DE DATOS'!$C$40 -> 32 | D19: Edad del Cónyuge | G19: =+'INGRESO DE DATOS'!$F$40 -> 46
D21: Fecha de Cotización: | F21: =NOW() -> 2024-02-15T11:46:52.200
A25: DEDUCIBLES | B25: PLAN 1 | C25: PLAN 2 | D25: PLAN 3 | E25: PLAN 4 | F25: PLAN 5 | G25: PLAN 6
A26: Dentro del pais de residencia | B26: n/a | C26: 1000 | D26: 2000 | E26: 5000 | F26: 10000 | G26: 20000
A27: Fuera del pais de residencia | B27: n/a | C27: 2000 | D27: 3000 | E27: 5000 | F27: 10000 | G27: 20000
A30: TARIFAS ANUALES
A31: Prima de Titular | B31: n/a | C31: =VLOOKUP($B$19,Tablas!$A$118:$H$141,4,TRUE) -> 8532 | D31: =VLOOKUP($B$19,Tablas!$A$118:$H$141,5,TRUE) -> 6988 | E31: =VLOOKUP($B$19,Tablas!$A$118:$H$141,6,TRUE) -> 5164 | F31: =VLOOKUP($B$19,Tablas!$A$118:$H$141,7,TRUE) -> 4331 | G31: =VLOOKUP($B$19,Tablas!$A$118:$H$141,8,TRUE) -> 3288
A32: Prima de Cónyuge | B32: n/a | C32: =IF($B$17=1,0,(VLOOKUP($G$19,Tablas!$A$828:$H$890,4,TRUE))) -> 3525.5 | D32: =IF($B$17=1,0,(VLOOKUP($G$19,Tablas!$A$828:$H$890,5,TRUE))) -> 2817.65 | E32: =IF($B$17=1,0,(VLOOKUP($G$19,Tablas!$A$828:$H$890,6,TRUE))) -> 2176.35 | F32: =IF($B$17=1,0,(VLOOKUP($G$19,Tablas!$A$828:$H$890,7,TRUE))) -> 1614.25 | G32: =IF($B$17=1,0,(VLOOKUP($G$19,Tablas!$A$828:$H$890,8,TRUE))) -> 1110.725
A33: Primas Hijos | B33: n/a | C33: =IF($G$17=0,0,(VLOOKUP($G$17,Tablas!$A$142:$H$144,4,TRUE))) -> 5518 | D33: =IF($G$17=0,0,(VLOOKUP($G$17,Tablas!$A$142:$H$144,5,TRUE))) -> 2874 | E33: =IF($G$17=0,0,(VLOOKUP($G$17,Tablas!$A$142:$H$144,6,TRUE))) -> 2512 | F33: =IF($G$17=0,0,(VLOOKUP($G$17,Tablas!$A$142:$H$144,7,TRUE))) -> 2098 | G33: =IF($G$17=0,0,(VLOOKUP($G$17,Tablas!$A$142:$H$144,8,TRUE))) -> 1539
A34: Rider: Complicaciones de Maternidad | B34: n/a | C34: =+IF($B$1=FALSE,0,Tablas!D145) -> 225 | D34: =+IF($B$1=FALSE,0,Tablas!E145) -> 225 | E34: =+IF($B$1=FALSE,0,Tablas!F145) -> 225 | F34: =+IF($B$1=FALSE,0,Tablas!G145) -> 225 | G34: =+IF($B$1=FALSE,0,Tablas!H145) -> 225
A35: Rider: Trasplante Organos | B35: n/a | C35: =IF($C$1=FALSE,0,Tablas!D146) -> 300 | D35: =IF($C$1=FALSE,0,Tablas!E146) -> 300 | E35: =IF($C$1=FALSE,0,Tablas!F146) -> 300 | F35: =IF($C$1=FALSE,0,Tablas!G146) -> 300 | G35: =IF($C$1=FALSE,0,Tablas!H146) -> 300
A36: TOTAL PRIMA NETA | B36: n/a | C36: =SUM(C31:C35) -> 18100.5 | D36: 13204.65 | E36: 10377.35 | F36: 8568.25 | G36: 6462.725
A37: Costo Administrativo Annual | B37: n/a | C37: 75 | D37: 75 | E37: 75 | F37: 75 | G37: 75
A38: IVA (12%) | B38: n/a | C38: =SUM(C36:C37)*'INGRESO DE DATOS'!$S$19 -> 2181.06 | D38: =SUM(D36:D37)*'INGRESO DE DATOS'!$S$19 -> 1593.558 | E38: =SUM(E36:E37)*'INGRESO DE DATOS'!$S$19 -> 1254.282 | F38: =SUM(F36:F37)*'INGRESO DE DATOS'!$S$19 -> 1037.19 | G38: =SUM(G36:G37)*'INGRESO DE DATOS'!$S$19 -> 784.527
A39: GRAN TOTAL : | B39: n/a | C39: =SUM(C36:C38) -> 20356.56 | D39: =SUM(D36:D38) -> 14873.208 | E39: =SUM(E36:E38) -> 11706.632 | F39: =SUM(F36:F38) -> 9680.44 | G39: =SUM(G36:G38) -> 7322.252
A42: TARIFAS SEMESTRALES
A43: Prima de Titular | B43: n/a | C43: =VLOOKUP($B$19,Tablas!$A$152:$H$175,4,TRUE) -> 4521.96 | D43: =VLOOKUP($B$19,Tablas!$A$152:$H$175,5,TRUE) -> 3703.64 | E43: =VLOOKUP($B$19,Tablas!$A$152:$H$175,6,TRUE) -> 2736.92 | F43: =VLOOKUP($B$19,Tablas!$A$152:$H$175,7,TRUE) -> 2295.43 | G43: =VLOOKUP($B$19,Tablas!$A$152:$H$175,8,TRUE) -> 1742.64
A44: Prima de Cónyuge | B44: n/a | C44: =IF($B$17=1,0,(VLOOKUP($G$19,Tablas!$A$152:$H$175,4,TRUE))) -> 6431.55 | D44: =IF($B$17=1,0,(VLOOKUP($G$19,Tablas!$A$152:$H$175,5,TRUE))) -> 5572.42 | E44: =IF($B$17=1,0,(VLOOKUP($G$19,Tablas!$A$152:$H$175,6,TRUE))) -> 3991.43 | F44: =IF($B$17=1,0,(VLOOKUP($G$19,Tablas!$A$152:$H$175,7,TRUE))) -> 3370.8 | G44: =IF($B$17=1,0,(VLOOKUP($G$19,Tablas!$A$152:$H$175,8,TRUE))) -> 2518.56
A45: Primas Hijos | B45: n/a | C45: =IF($G$17=0,0,(VLOOKUP($G$17,Tablas!$A$176:$H$178,4,TRUE))) -> 2924.54 | D45: =IF($G$17=0,0,(VLOOKUP($G$17,Tablas!$A$176:$H$178,5,TRUE))) -> 1523.22 | E45: =IF($G$17=0,0,(VLOOKUP($G$17,Tablas!$A$176:$H$178,6,TRUE))) -> 1331.36 | F45: =IF($G$17=0,0,(VLOOKUP($G$17,Tablas!$A$176:$H$178,7,TRUE))) -> 1111.94 | G45: =IF($G$17=0,0,(VLOOKUP($G$17,Tablas!$A$176:$H$178,8,TRUE))) -> 815.67
A46: Rider: Complicaciones de Maternidad | B46: n/a | C46: =+IF($B$1=FALSE,0,Tablas!D179) -> 119.25 | D46: =+IF($B$1=FALSE,0,Tablas!E179) -> 119.25 | E46: =+IF($B$1=FALSE,0,Tablas!F179) -> 119.25 | F46: =+IF($B$1=FALSE,0,Tablas!G179) -> 119.25 | G46: =+IF($B$1=FALSE,0,Tablas!H179) -> 119.25
A47: Rider: Trasplante Organos | B47: n/a | C47: =IF($C$1=FALSE,0,Tablas!D180) -> 159 | D47: =IF($C$1=FALSE,0,Tablas!E180) -> 159 | E47: =IF($C$1=FALSE,0,Tablas!F180) -> 159 | F47: =IF($C$1=FALSE,0,Tablas!G180) -> 159 | G47: =IF($C$1=FALSE,0,Tablas!H180) -> 159
A48: TOTAL PRIMA NETA | B48: n/a | C48: =SUM(C43:C47) -> 14156.3 | D48: 11077.53 | E48: 8337.96 | F48: 7056.42 | G48: 5355.12
A49: Costo Administrativo Anual | B49: n/a | C49: 75 | D49: 75 | E49: 75 | F49: 75 | G49: 75
A50: IVA (12%) | B50: n/a | C50: =SUM(C48:C49)*'INGRESO DE DATOS'!$S$19 -> 1707.756 | D50: =SUM(D48:D49)*'INGRESO DE DATOS'!$S$19 -> 1338.3036 | E50: =SUM(E48:E49)*'INGRESO DE DATOS'!$S$19 -> 1009.5552 | F50: =SUM(F48:F49)*'INGRESO DE DATOS'!$S$19 -> 855.7704 | G50: =SUM(G48:G49)*'INGRESO DE DATOS'!$S$19 -> 651.6144
A51: TOTAL (1ra Cuota) | B51: n/a | C51: =SUM(C48:C50) -> 15939.056 | D51: =SUM(D48:D50) -> 12490.8336 | E51: =SUM(E48:E50) -> 9422.5152 | F51: =SUM(F48:F50) -> 7987.1904 | G51: =SUM(G48:G50) -> 6081.7344
A52: TOTAL (2da Cuota) | B52: n/a | C52: =C51-C49*'INGRESO DE DATOS'!$T$19 -> 15855.056 | D52: =D51-D49*'INGRESO DE DATOS'!$T$19 -> 12406.8336 | E52: =E51-E49*'INGRESO DE DATOS'!$T$19 -> 9338.5152 | F52: =F51-F49*'INGRESO DE DATOS'!$T$19 -> 7903.1904 | G52: =G51-G49*'INGRESO DE DATOS'!$T$19 -> 5997.7344
A53: GRAN TOTAL | B53: n/a | C53: =SUM(C51:C52) -> 31794.112 | D53: =SUM(D51:D52) -> 24897.6672 | E53: 18761.0304 | F53: 15890.3808 | G53: 12079.4688
A56: TARIFAS TRIMESTRALES
A57: Prima de Titular | B57: n/a | C57: =VLOOKUP($B$19,Tablas!$A$187:$H$210,4,TRUE) -> 2346.3 | D57: =VLOOKUP($B$19,Tablas!$A$187:$H$210,5,TRUE) -> 1921.7 | E57: =VLOOKUP($B$19,Tablas!$A$187:$H$210,6,TRUE) -> 1420.1 | F57: =VLOOKUP($B$19,Tablas!$A$187:$H$210,7,TRUE) -> 1191.025 | G57: =VLOOKUP($B$19,Tablas!$A$187:$H$210,8,TRUE) -> 904.2
A58: Prima de Cónyuge | B58: n/a | C58: =IF($B$17=1,0,(VLOOKUP($G$19,Tablas!$A$187:$H$210,4,TRUE))) -> 3337.125 | D58: =IF($B$17=1,0,(VLOOKUP($G$19,Tablas!$A$187:$H$210,5,TRUE))) -> 2891.35 | E58: =IF($B$17=1,0,(VLOOKUP($G$19,Tablas!$A$187:$H$210,6,TRUE))) -> 2071.025 | F58: =IF($B$17=1,0,(VLOOKUP($G$19,Tablas!$A$187:$H$210,7,TRUE))) -> 1749 | G58: =IF($B$17=1,0,(VLOOKUP($G$19,Tablas!$A$187:$H$210,8,TRUE))) -> 1306.8
A59: Primas Hijos | B59: n/a | C59: =IF($G$17=0,0,(VLOOKUP($G$17,Tablas!$A$211:$H$213,4,TRUE))) -> 1517.45 | D59: =IF($G$17=0,0,(VLOOKUP($G$17,Tablas!$A$211:$H$213,5,TRUE))) -> 790.35 | E59: =IF($G$17=0,0,(VLOOKUP($G$17,Tablas!$A$211:$H$213,6,TRUE))) -> 690.8 | F59: =IF($G$17=0,0,(VLOOKUP($G$17,Tablas!$A$211:$H$213,7,TRUE))) -> 576.95 | G59: =IF($G$17=0,0,(VLOOKUP($G$17,Tablas!$A$211:$H$213,8,TRUE))) -> 423.225
A60: Rider: Complicaciones de Maternidad | B60: n/a | C60: =+IF($B$1=FALSE,0,Tablas!D214) -> 61.875 | D60: =+IF($B$1=FALSE,0,Tablas!E214) -> 61.875 | E60: =+IF($B$1=FALSE,0,Tablas!F214) -> 61.875 | F60: =+IF($B$1=FALSE,0,Tablas!G214) -> 61.875 | G60: =+IF($B$1=FALSE,0,Tablas!H214) -> 61.875
A61: Rider: Trasplante Organos | B61: n/a | C61: =IF($C$1=FALSE,0,Tablas!D215) -> 82.5 | D61: =IF($C$1=FALSE,0,Tablas!E215) -> 82.5 | E61: =IF($C$1=FALSE,0,Tablas!F215) -> 82.5 | F61: =IF($C$1=FALSE,0,Tablas!G215) -> 82.5 | G61: =IF($C$1=FALSE,0,Tablas!H215) -> 82.5
A62: TOTAL PRIMA NETA | B62: n/a | C62: =SUM(C57:C61) -> 7345.25 | D62: 5747.775 | E62: 4326.3 | F62: 3661.35 | G62: 2778.6
A63: Costo Administrativo Anual | B63: n/a | C63: 75 | D63: 75 | E63: 75 | F63: 75 | G63: 75
A64: IVA (12%) | B64: n/a | C64: =SUM(C62:C63)*'INGRESO DE DATOS'!$S$19 -> 890.43 | D64: =SUM(D62:D63)*'INGRESO DE DATOS'!$S$19 -> 698.733 | E64: =SUM(E62:E63)*'INGRESO DE DATOS'!$S$19 -> 528.156 | F64: =SUM(F62:F63)*'INGRESO DE DATOS'!$S$19 -> 448.362 | G64: =SUM(G62:G63)*'INGRESO DE DATOS'!$S$19 -> 342.432
A65: TOTAL (1ra Cuota) | B65: n/a | C65: =SUM(C62:C64) -> 8310.68 | D65: =SUM(D62:D64) -> 6521.508 | E65: 4929.456 | F65: 4184.712 | G65: 3196.032
A66: TOTAL (2da a 4ta Cuota) | B66: n/a | C66: =C65-C63*'INGRESO DE DATOS'!$T$19 -> 8226.68 | D66: =D65-D63*'INGRESO DE DATOS'!$T$19 -> 6437.508 | E66: =E65-E63*'INGRESO DE DATOS'!$T$19 -> 4845.456 | F66: =F65-F63*'INGRESO DE DATOS'!$T$19 -> 4100.712 | G66: =G65-G63*'INGRESO DE DATOS'!$T$19 -> 3112.032
A67: GRAN TOTAL | B67: n/a | C67: =C65+C66*3 -> 32990.72 | D67: =D65+D66*3 -> 25834.032 | E67: 19465.824 | F67: 16486.848 | G67: 12532.128
A69: Este presupuesto solamente tiene carácter informativo y en ningún momento expresa compromiso legal para suministrarle cobertura de seguro. La emisión de una póliza de seguro Bupa está sujeta a todas las evaluaciones de riesgo por parte de Bupa y a la recepción de todos los pagos de prima requeridos.

Sheet Bupa Essential Care
B1: FALSE | C1: FALSE | I1: RESUMEN DE BENEFICIOS | Q1: RESUMEN DE BENEFICIOS
A5: Cotización de Seguro Médico Internacional Bupa Essential Care Tarifas en US$ | Validas: 1 de enero de 2024 | G5: REGIÓN
G7: =IF('INGRESO DE DATOS'!W14="Guatemala","GUATEMALA",'INGRESO DE DATOS'!W14) -> GUATEMALA
A13: Nombre del asegurado principal | B13: =+'INGRESO DE DATOS'!$C$36 -> John Doe
A15: Broker/Agente | B15: =+'INGRESO DE DATOS'!$C$44 -> Agencia
A17: Número de Adultos en la Póliza | B17: =+'INGRESO DE DATOS'!$C$38 -> 2 | D17: Dependientes (menores de 24 años) | G17: =+'INGRESO DE DATOS'!$F$38 -> 2
D18: =IF('INGRESO DE DATOS'!$P$2=TRUE, "Cotización para dependiente de 24 años","") -> 
A19: Edad del Titular | B19: =+'INGRESO DE DATOS'!$C$40 -> 32 | D19: Edad del Cónyuge | G19: =+'INGRESO DE DATOS'!$F$40 -> 46
D21: Fecha de Cotización: | F21: =NOW() -> 2024-02-15T11:46:52.200
A25: DEdUCIBLES | B25: PLAN 1 | C25: PLAN 2 | D25: PLAN 3 | E25: PLAN 4 | F25: PLAN 5 | G25: PLAN 6
A26: Dentro del pais de residencia | B26: 250 | C26: 250 | D26: 1000 | E26: 5000 | F26: 10000 | G26: 20000
A27: Fuera del pais de residencia | B27: 1000 | C27: 5000 | D27: 10000 | E27: 5000 | F27: 10000 | G27: 20000
A30: TARIFAS ANUALES
A31: Prima de Titular | B31: =VLOOKUP($B$19,Tablas!$A$224:$H$286,3,TRUE) -> 2138 | C31: =VLOOKUP($B$19,Tablas!$A$224:$H$286,4,TRUE) -> 2056 | D31: =VLOOKUP($B$19,Tablas!$A$224:$H$286,5,TRUE) -> 1906 | E31: =VLOOKUP($B$19,Tablas!$A$224:$H$286,6,TRUE) -> 1351 | F31: =VLOOKUP($B$19,Tablas!$A$224:$H$286,7,TRUE) -> 989 | G31: =VLOOKUP($B$19,Tablas!$A$224:$H$286,8,TRUE) -> 702
A32: Prima de Cónyuge | B32: =IF($B$17=1,0,(VLOOKUP($G$19,Tablas!$A$224:$H$286,3,TRUE))) -> 3249 | C32: =IF($B$17=1,0,(VLOOKUP($G$19,Tablas!$A$224:$H$286,4,TRUE))) -> 3124 | D32: =IF($B$17=1,0,(VLOOKUP($G$19,Tablas!$A$224:$H$286,5,TRUE))) -> 2897 | E32: =IF($B$17=1,0,(VLOOKUP($G$19,Tablas!$A$224:$H$286,6,TRUE))) -> 2051 | F32: =IF($B$17=1,0,(VLOOKUP($G$19,Tablas!$A$224:$H$286,7,TRUE))) -> 1444 | G32: =IF($B$17=1,0,(VLOOKUP($G$19,Tablas!$A$224:$H$286,8,TRUE))) -> 1009
A33: Primas Hijos | B33: =IF($G$17=0,0,(VLOOKUP($G$17,Tablas!$A$287:$H$289,3,TRUE))) -> 1086 | C33: =IF($G$17=0,0,(VLOOKUP($G$17,Tablas!$A$287:$H$289,4,TRUE))) -> 1045 | D33: =IF($G$17=0,0,(VLOOKUP($G$17,Tablas!$A$287:$H$289,5,TRUE))) -> 968 | E33: =IF($G$17=0,0,(VLOOKUP($G$17,Tablas!$A$287:$H$289,6,TRUE))) -> 686 | F33: =IF($G$17=0,0,(VLOOKUP($G$17,Tablas!$A$287:$H$289,7,TRUE))) -> 572 | G33: =IF($G$17=0,0,(VLOOKUP($G$17,Tablas!$A$287:$H$289,8,TRUE))) -> 452
A34: Rider: Complicaciones de Maternidad | B34: =+IF($B$1=FALSE,0,Tablas!C290) -> 0 | C34: =+IF($B$1=FALSE,0,Tablas!D290) -> 0 | D34: =+IF($B$1=FALSE,0,Tablas!E290) -> 0 | E34: =+IF($B$1=FALSE,0,Tablas!F290) -> 0 | F34: =+IF($B$1=FALSE,0,Tablas!G290) -> 0 | G34: =+IF($B$1=FALSE,0,Tablas!H290) -> 0
A35: Rider: Trasplante Organos | B35: =+IF($C$1=FALSE,0,Tablas!C291) -> 0 | C35: =+IF($C$1=FALSE,0,Tablas!D291) -> 0 | D35: =+IF($C$1=FALSE,0,Tablas!E291) -> 0 | E35: =+IF($C$1=FALSE,0,Tablas!F291) -> 0 | F35: =+IF($C$1=FALSE,0,Tablas!G291) -> 0 | G35: =+IF($C$1=FALSE,0,Tablas!H291) -> 0
A36: TOTAL PRIMA NETA | B36: =SUM(B31:B35) -> 6473 | C36: 6225 | D36: 5771 | E36: 4088 | F36: 3005 | G36: 2163
A37: Costo Administrativo Annual | B37: 75 | C37: 75 | D37: 75 | E37: 75 | F37: 75 | G37: 75
A38: IVA (12%) | B38: =SUM(B36:B37)*'INGRESO DE DATOS'!$S$19 -> 785.76 | C38: =SUM(C36:C37)*'INGRESO DE DATOS'!$S$19 -> 756 | D38: =SUM(D36:D37)*'INGRESO DE DATOS'!$S$19 -> 701.52 | E38: =SUM(E36:E37)*'INGRESO DE DATOS'!$S$19 -> 499.56 | F38: =SUM(F36:F37)*'INGRESO DE DATOS'!$S$19 -> 369.6 | G38: =SUM(G36:G37)*'INGRESO DE DATOS'!$S$19 -> 268.56
A39: GRAN TOTAL : | B39: =SUM(B36:B38) -> 7333.76 | C39: =SUM(C36:C38) -> 7056 | D39: =SUM(D36:D38) -> 6547.52 | E39: 4662.56 | F39: 3449.6 | G39: 2506.56
A42: TARIFAS SEMESTRALES
A43: Prima de Titular | B43: =VLOOKUP($B$19,Tablas!$A$298:$H$360,3,TRUE) -> 1133.14 | C43: =VLOOKUP($B$19,Tablas!$A$298:$H$360,4,TRUE) -> 1089.68 | D43: =VLOOKUP($B$19,Tablas!$A$298:$H$360,5,TRUE) -> 1010.18 | E43: =VLOOKUP($B$19,Tablas!$A$298:$H$360,6,TRUE) -> 716.03 | F43: =VLOOKUP($B$19,Tablas!$A$298:$H$360,7,TRUE) -> 524.17 | G43: =VLOOKUP($B$19,Tablas!$A$298:$H$360,8,TRUE) -> 372.06
A44: Prima de Cónyuge | B44: =IF($B$17=1,0,(VLOOKUP($G$19,Tablas!$A$298:$H$360,3,TRUE))) -> 1721.97 | C44: =IF($B$17=1,0,(VLOOKUP($G$19,Tablas!$A$298:$H$360,4,TRUE))) -> 1655.72 | D44: =IF($B$17=1,0,(VLOOKUP($G$19,Tablas!$A$298:$H$360,5,TRUE))) -> 1535.41 | E44: =IF($B$17=1,0,(VLOOKUP($G$19,Tablas!$A$298:$H$360,6,TRUE))) -> 1087.03 | F44: =IF($B$17=1,0,(VLOOKUP($G$19,Tablas!$A$298:$H$360,7,TRUE))) -> 765.32 | G44: =IF($B$17=1,0,(VLOOKUP($G$19,Tablas!$A$298:$H$360,8,TRUE))) -> 534.77
A45: Primas Hijos | B45: =IF($G$17=0,0,(VLOOKUP($G$17,Tablas!$A$361:$H$363,3,TRUE))) -> 575.58 | C45: =IF($G$17=0,0,(VLOOKUP($G$17,Tablas!$A$361:$H$363,4,TRUE))) -> 553.85 | D45: =IF($G$17=0,0,(VLOOKUP($G$17,Tablas!$A$361:$H$363,5,TRUE))) -> 513.04 | E45: =IF($G$17=0,0,(VLOOKUP($G$17,Tablas!$A$361:$H$363,6,TRUE))) -> 363.58 | F45: =IF($G$17=0,0,(VLOOKUP($G$17,Tablas!$A$361:$H$363,7,TRUE))) -> 303.16 | G45: =IF($G$17=0,0,(VLOOKUP($G$17,Tablas!$A$361:$H$363,8,TRUE))) -> 239.56
A46: Rider: Complicaciones de Maternidad | B46: =+IF($B$1=FALSE,0,Tablas!C364) -> 0 | C46: =+IF($B$1=FALSE,0,Tablas!D364) -> 0 | D46: =+IF($B$1=FALSE,0,Tablas!E364) -> 0 | E46: =+IF($B$1=FALSE,0,Tablas!F364) -> 0 | F46: =+IF($B$1=FALSE,0,Tablas!G364) -> 0 | G46: =+IF($B$1=FALSE,0,Tablas!H364) -> 0
A47: Rider: Trasplante Organos | B47: =+IF($C$1=FALSE,0,Tablas!C365) -> 0 | C47: =+IF($C$1=FALSE,0,Tablas!D365) -> 0 | D47: =+IF($C$1=FALSE,0,Tablas!E365) -> 0 | E47: =+IF($C$1=FALSE,0,Tablas!F365) -> 0 | F47: =+IF($C$1=FALSE,0,Tablas!G365) -> 0 | G47: =+IF($C$1=FALSE,0,Tablas!H365) -> 0
A48: TOTAL PRIMA NETA | B48: =SUM(B43:B47) -> 3430.69 | C48: 3299.25 | D48: 3058.63 | E48: 2166.64 | F48: 1592.65 | G48: 1146.39
A49: Costo Administrativo Anual | B49: 75 | C49: 75 | D49: 75 | E49: 75 | F49: 75 | G49: 75
A50: IVA (12%) | B50: =SUM(B48:B49)*'INGRESO DE DATOS'!$S$19 -> 420.6828 | C50: =SUM(C48:C49)*'INGRESO DE DATOS'!$S$19 -> 404.91 | D50: =SUM(D48:D49)*'INGRESO DE DATOS'!$S$19 -> 376.0356 | E50: =SUM(E48:E49)*'INGRESO DE DATOS'!$S$19 -> 268.9968 | F50: =SUM(F48:F49)*'INGRESO DE DATOS'!$S$19 -> 200.118 | G50: =SUM(G48:G49)*'INGRESO DE DATOS'!$S$19 -> 146.5668
A51: TOTAL (1ra Cuota) | B51: =SUM(B48:B50) -> 3926.3728 | C51: =SUM(C48:C50) -> 3779.16 | D51: =SUM(D48:D50) -> 3509.6656 | E51: 2510.6368 | F51: 1867.768 | G51: 1367.9568
A52: TOTAL (2da Cuota) | B52: =B51-B49*'INGRESO DE DATOS'!$T$19 -> 3842.3728 | C52: =C51-C49*'INGRESO DE DATOS'!$T$19 -> 3695.16 | D52: =D51-D49*'INGRESO DE DATOS'!$T$19 -> 3425.6656 | E52: =E51-E49*'INGRESO DE DATOS'!$T$19 -> 2426.6368 | F52: =F51-F49*'INGRESO DE DATOS'!$T$19 -> 1783.768 | G52: =G51-G49*'INGRESO DE DATOS'!$T$19 -> 1283.9568
A53: GRAN TOTAL | B53: =SUM(B51:B52) -> 7768.7456 | C53: =SUM(C51:C52) -> 7474.32 | D53: =SUM(D51:D52) -> 6935.3312 | E53: 4937.2736 | F53: 3651.536 | G53: 2651.9136
A56: TARIFAS TRIMESTRALES
A57: Prima de Titular | B57: =VLOOKUP($B$19,Tablas!$A$373:$H$435,3,TRUE) -> 587.95 | C57: =VLOOKUP($B$19,Tablas!$A$373:$H$435,4,TRUE) -> 565.4 | D57: =VLOOKUP($B$19,Tablas!$A$373:$H$435,5,TRUE) -> 524.15 | E57: =VLOOKUP($B$19,Tablas!$A$373:$H$435,6,TRUE) -> 371.525 | F57: =VLOOKUP($B$19,Tablas!$A$373:$H$435,7,TRUE) -> 271.975 | G57: =VLOOKUP($B$19,Tablas!$A$373:$H$435,8,TRUE) -> 193.05
A58: Prima de Cónyuge | B58: =IF($B$17=1,0,(VLOOKUP($G$19,Tablas!$A$373:$H$435,3,TRUE))) -> 893.475 | C58: =IF($B$17=1,0,(VLOOKUP($G$19,Tablas!$A$373:$H$435,4,TRUE))) -> 859.1 | D58: =IF($B$17=1,0,(VLOOKUP($G$19,Tablas!$A$373:$H$435,5,TRUE))) -> 796.675 | E58: =IF($B$17=1,0,(VLOOKUP($G$19,Tablas!$A$373:$H$435,6,TRUE))) -> 564.025 | F58: =IF($B$17=1,0,(VLOOKUP($G$19,Tablas!$A$373:$H$435,7,TRUE))) -> 397.1 | G58: =IF($B$17=1,0,(VLOOKUP($G$19,Tablas!$A$373:$H$435,8,TRUE))) -> 277.475
A59: Primas Hijos | B59: =IF($G$17=0,0,(VLOOKUP($G$17,Tablas!$A$436:$H$438,3,TRUE))) -> 298.65 | C59: =IF($G$17=0,0,(VLOOKUP($G$17,Tablas!$A$436:$H$438,4,TRUE))) -> 287.375 | D59: =IF($G$17=0,0,(VLOOKUP($G$17,Tablas!$A$436:$H$438,5,TRUE))) -> 266.2 | E59: =IF($G$17=0,0,(VLOOKUP($G$17,Tablas!$A$436:$H$438,6,TRUE))) -> 188.65 | F59: =IF($G$17=0,0,(VLOOKUP($G$17,Tablas!$A$436:$H$438,7,TRUE))) -> 157.3 | G59: =IF($G$17=0,0,(VLOOKUP($G$17,Tablas!$A$436:$H$438,8,TRUE))) -> 124.3
A60: Rider: Complicaciones de Maternidad | B60: =+IF($B$1=FALSE,0,Tablas!C439) -> 0 | C60: =+IF($B$1=FALSE,0,Tablas!D439) -> 0 | D60: =+IF($B$1=FALSE,0,Tablas!E439) -> 0 | E60: =+IF($B$1=FALSE,0,Tablas!F439) -> 0 | F60: =+IF($B$1=FALSE,0,Tablas!G439) -> 0 | G60: =+IF($B$1=FALSE,0,Tablas!H439) -> 0
A61: Rider: Trasplante Organos | B61: =+IF($C$1=FALSE,0,Tablas!C440) -> 0 | C61: =+IF($C$1=FALSE,0,Tablas!D440) -> 0 | D61: =+IF($C$1=FALSE,0,Tablas!E440) -> 0 | E61: =+IF($C$1=FALSE,0,Tablas!F440) -> 0 | F61: =+IF($C$1=FALSE,0,Tablas!G440) -> 0 | G61: =+IF($C$1=FALSE,0,Tablas!H440) -> 0
A62: TOTAL PRIMA NETA | B62: =SUM(B57:B61) -> 1780.075 | C62: 1711.875 | D62: 1587.025 | E62: 1124.2 | F62: 826.375 | G62: 594.825
A63: Costo Administrativo Anual | B63: 75 | C63: 75 | D63: 75 | E63: 75 | F63: 75 | G63: 75
A64: IVA(12%) | B64: =SUM(C62:C63)*'INGRESO DE DATOS'!$S$19 -> 214.425 | D64: =SUM(D62:D63)*'INGRESO DE DATOS'!$S$19 -> 199.443 | E64: =SUM(E62:E63)*'INGRESO DE DATOS'!$S$19 -> 143.904 | F64: =SUM(F62:F63)*'INGRESO DE DATOS'!$S$19 -> 108.165 | G64: =SUM(G62:G63)*'INGRESO DE DATOS'!$S$19 -> 80.379
A65: TOTAL (1ra Cuota) | B65: =SUM(B62:B64) -> 2069.5 | C65: =SUM(C62:C64) -> 1786.875 | D65: =SUM(D62:D64) -> 1861.468 | E65: 1343.104 | F65: 1009.54 | G65: 750.204
A66: TOTAL (2da a 4ta Cuota) | B66: =B65-B63*'INGRESO DE DATOS'!$T$19 -> 1985.5 | C66: =C65-C63*'INGRESO DE DATOS'!$T$19 -> 1702.875 | D66: =D65-D63*'INGRESO DE DATOS'!$T$19 -> 1777.468 | E66: =E65-E63*'INGRESO DE DATOS'!$T$19 -> 1259.104 | F66: =F65-F63*'INGRESO DE DATOS'!$T$19 -> 925.54 | G66: =G65-G63*'INGRESO DE DATOS'!$T$19 -> 666.204
A67: GRAN TOTAL | B67: =B65+B66*3 -> 8026 | C67: =C65+C66*3 -> 6895.5 | D67: 7193.872 | E67: 5120.416 | F67: 3786.16 | G67: 2748.816
A71: Este presupuesto solamente tiene carácter informativo y en ningún momento expresa compromiso legal para suministrarle cobertura de seguro. La emisión de una póliza de seguro Bupa está sujeta a todas las evaluaciones de riesgo por parte de Bupa y a la recepción de todos los pagos de prima requeridos.

Sheet Bupa Classic Care
B1: FALSE | C1: FALSE | I1: RESUMEN DE BENEFICIOS | Q1: RESUMEN DE BENEFICIOS
B2: FALSE
A5: Cotización de Seguro Médico Internacional Bupa Classic Care Tarifas en US$ | Validas: 1 de enero de 2024 | G5: REGIÓN
G7: =IF('INGRESO DE DATOS'!W14="Guatemala","GUATEMALA",'INGRESO DE DATOS'!W14) -> GUATEMALA
A13: Nombre del asegurado principal | B13: =+'INGRESO DE DATOS'!$C$36 -> John Doe
A15: Broker/Agente | B15: =+'INGRESO DE DATOS'!$C$44 -> Agencia
A17: Número de Adultos en la Póliza | B17: =+'INGRESO DE DATOS'!$C$38 -> 2 | D17: Dependientes (menores de 24 años) | G17: =+'INGRESO DE DATOS'!$F$38 -> 2
D18: =IF('INGRESO DE DATOS'!$P$2=TRUE, "Cotización para dependiente de 24 años","") -> 
A19: Edad del Titular | B19: =+'INGRESO DE DATOS'!$C$40 -> 32 | D19: Edad del Cónyuge | G19: =+'INGRESO DE DATOS'!$F$40 -> 46
D23: Fecha de Cotización: | F23: =NOW() -> 2024-02-15T11:46:52.200
A27: DEdUCIBLES | B27: PLAN 1 | C27: PLAN 2 | D27: PLAN 3 | E27: PLAN 4 | F27: PLAN 5 | G27: PLAN 6
A28: Dentro del pais de residencia | B28: n/a | C28: 1000 | D28: 2000 | E28: 5000 | F28: 10000 | G28: 20000
A29: Fuera del pais de residencia | B29: n/a | C29: 2000 | D29: 3000 | E29: 5000 | F29: 10000 | G29: 20000
A32: TARIFAS ANUALES
A33: Prima de Titular | B33: n/a | C33: =VLOOKUP($B$19,Tablas!$A$452:$H$514,4,TRUE) -> 3786.75 | D33: =VLOOKUP($B$19,Tablas!$A$452:$H$514,5,TRUE) -> 3116.95 | E33: =VLOOKUP($B$19,Tablas!$A$452:$H$514,6,TRUE) -> 2016.2 | F33: =VLOOKUP($B$19,Tablas!$A$452:$H$514,7,TRUE) -> 1436.5 | G33: =VLOOKUP($B$19,Tablas!$A$452:$H$514,8,TRUE) -> 1020.85
A34: Prima de Cónyuge | B34: n/a | C34: =IF($B$17=1,0,(VLOOKUP($G$19,Tablas!$A$452:$H$514,4,TRUE))) -> 5448.5 | D34: =IF($B$17=1,0,(VLOOKUP($G$19,Tablas!$A$452:$H$514,5,TRUE))) -> 4661.4 | E34: =IF($B$17=1,0,(VLOOKUP($G$19,Tablas!$A$452:$H$514,6,TRUE))) -> 3063.4 | F34: =IF($B$17=1,0,(VLOOKUP($G$19,Tablas!$A$452:$H$514,7,TRUE))) -> 2099.5 | G34: =IF($B$17=1,0,(VLOOKUP($G$19,Tablas!$A$452:$H$514,8,TRUE))) -> 1465.4
A35: Primas Hijos | B35: n/a | C35: =IF($G$17=0,0,(VLOOKUP($G$17,Tablas!$A$515:$H$517,4,TRUE))) -> 2534.7 | D35: =IF($G$17=0,0,(VLOOKUP($G$17,Tablas!$A$515:$H$517,5,TRUE))) -> 1314.95 | E35: =IF($G$17=0,0,(VLOOKUP($G$17,Tablas!$A$515:$H$517,6,TRUE))) -> 1024.25 | F35: =IF($G$17=0,0,(VLOOKUP($G$17,Tablas!$A$515:$H$517,7,TRUE))) -> 722.5 | G35: =IF($G$17=0,0,(VLOOKUP($G$17,Tablas!$A$515:$H$517,8,TRUE))) -> 499.8
A36: Rider: Complicaciones de Maternidad | B36: n/a | C36: =+IF($B$1=FALSE,0,Tablas!D518) -> 0 | D36: =+IF($B$1=FALSE,0,Tablas!E518) -> 0 | E36: =+IF($B$1=FALSE,0,Tablas!F518) -> 0 | F36: =+IF($B$1=FALSE,0,Tablas!G518) -> 0 | G36: =+IF($B$1=FALSE,0,Tablas!H518) -> 0
A37: Rider: Trasplante Organos | B37: n/a | C37: =IF($C$1=FALSE,0,Tablas!D519) -> 0 | D37: =IF($C$1=FALSE,0,Tablas!E519) -> 0 | E37: =IF($C$1=FALSE,0,Tablas!F519) -> 0 | F37: =IF($C$1=FALSE,0,Tablas!G519) -> 0 | G37: =IF($C$1=FALSE,0,Tablas!H519) -> 0
A38: Rider: Eliminación de Deducible | B38: n/a | C38: =IF($B$2=FALSE,0,Tablas!D520) -> 0 | D38: =IF($B$2=FALSE,0,Tablas!E520) -> 0 | E38: =IF($B$2=FALSE,0,Tablas!F520) -> 0 | F38: =IF($B$2=FALSE,0,Tablas!G520) -> 0 | G38: =IF($B$2=FALSE,0,Tablas!H520) -> 0
A39: TOTAL PRIMA NETA | B39: n/a | C39: =SUM(C33:C38) -> 11769.95 | D39: 9093.3 | E39: 6103.85 | F39: 4258.5 | G39: 2986.05
A40: Costo Administrativo Annual | B40: n/a | C40: 75 | D40: 75 | E40: 75 | F40: 75 | G40: 75
A41: IVA (12%) | B41: n/a | C41: =SUM(C39:C40)*'INGRESO DE DATOS'!$S$19 -> 1421.394 | D41: =SUM(D39:D40)*'INGRESO DE DATOS'!$S$19 -> 1100.196 | E41: =SUM(E39:E40)*'INGRESO DE DATOS'!$S$19 -> 741.462 | F41: =SUM(F39:F40)*'INGRESO DE DATOS'!$S$19 -> 520.02 | G41: =SUM(G39:G40)*'INGRESO DE DATOS'!$S$19 -> 367.326
A42: GRAN TOTAL : | B42: n/a | C42: =SUM(C39:C41) -> 13266.344 | D42: =SUM(D39:D41) -> 10268.496 | E42: =SUM(E39:E41) -> 6920.312 | F42: =SUM(F39:F41) -> 4853.52 | G42: =SUM(G39:G41) -> 3428.376
A45: TARIFAS SEMESTRALES
A46: Prima de Titular | B46: n/a | C46: =VLOOKUP($B$19,Tablas!$A$526:$H$588,4,TRUE) -> 2006.9775 | D46: =VLOOKUP($B$19,Tablas!$A$526:$H$588,5,TRUE) -> 1651.9835 | E46: =VLOOKUP($B$19,Tablas!$A$526:$H$588,6,TRUE) -> 1068.586 | F46: =VLOOKUP($B$19,Tablas!$A$526:$H$588,7,TRUE) -> 761.345 | G46: =VLOOKUP($B$19,Tablas!$A$526:$H$588,8,TRUE) -> 541.0505
A47: Prima de Cónyuge | B47: n/a | C47: =IF($B$17=1,0,(VLOOKUP($G$19,Tablas!$A$526:$H$588,4,TRUE))) -> 2887.705 | D47: =IF($B$17=1,0,(VLOOKUP($G$19,Tablas!$A$526:$H$588,5,TRUE))) -> 2470.542 | E47: =IF($B$17=1,0,(VLOOKUP($G$19,Tablas!$A$526:$H$588,6,TRUE))) -> 1623.602 | F47: =IF($B$17=1,0,(VLOOKUP($G$19,Tablas!$A$526:$H$588,7,TRUE))) -> 1112.735 | G47: =IF($B$17=1,0,(VLOOKUP($G$19,Tablas!$A$526:$H$588,8,TRUE))) -> 776.662
A48: Primas Hijos | B48: n/a | C48: =IF($G$17=0,0,(VLOOKUP($G$17,Tablas!$A$589:$H$591,4,TRUE))) -> 1343.391 | D48: =IF($G$17=0,0,(VLOOKUP($G$17,Tablas!$A$589:$H$591,5,TRUE))) -> 696.9235 | E48: =IF($G$17=0,0,(VLOOKUP($G$17,Tablas!$A$589:$H$591,6,TRUE))) -> 542.8525 | F48: =IF($G$17=0,0,(VLOOKUP($G$17,Tablas!$A$589:$H$591,7,TRUE))) -> 382.925 | G48: =IF($G$17=0,0,(VLOOKUP($G$17,Tablas!$A$589:$H$591,8,TRUE))) -> 264.894
A49: Rider: Complicaciones de Maternidad | B49: n/a | C49: =+IF($B$1=FALSE,0,Tablas!D592) -> 0 | D49: =+IF($B$1=FALSE,0,Tablas!E592) -> 0 | E49: =+IF($B$1=FALSE,0,Tablas!F592) -> 0 | F49: =+IF($B$1=FALSE,0,Tablas!G592) -> 0 | G49: =+IF($B$1=FALSE,0,Tablas!H592) -> 0
A50: Rider: Trasplante Organos | B50: n/a | C50: =IF($C$1=FALSE,0,Tablas!D593) -> 0 | D50: =IF($C$1=FALSE,0,Tablas!E593) -> 0 | E50: =IF($C$1=FALSE,0,Tablas!F593) -> 0 | F50: =IF($C$1=FALSE,0,Tablas!G593) -> 0 | G50: =IF($C$1=FALSE,0,Tablas!H593) -> 0
A51: Rider: Eliminación de Deducible | B51: n/a | C51: =IF($B$2=FALSE,0,Tablas!D594) -> 0 | D51: =IF($B$2=FALSE,0,Tablas!E594) -> 0 | E51: =IF($B$2=FALSE,0,Tablas!F594) -> 0 | F51: =IF($B$2=FALSE,0,Tablas!G594) -> 0 | G51: =IF($B$2=FALSE,0,Tablas!H594) -> 0
A52: TOTAL PRIMA NETA | B52: n/a | C52: =SUM(C46:C51) -> 6238.0735 | D52: 4819.449 | E52: 3235.0405 | F52: 2257.005 | G52: 1582.6065
A53: Costo Administrativo Anual | B53: n/a | C53: 75 | D53: 75 | E53: 75 | F53: 75 | G53: 75
A54: IVA (12%) | B54: n/a | C54: =SUM(C52:C53)*'INGRESO DE DATOS'!$S$19 -> 757.56882 | D54: =SUM(D52:D53)*'INGRESO DE DATOS'!$S$19 -> 587.33388 | E54: =SUM(E52:E53)*'INGRESO DE DATOS'!$S$19 -> 397.20486 | F54: =SUM(F52:F53)*'INGRESO DE DATOS'!$S$19 -> 279.8406 | G54: =SUM(G52:G53)*'INGRESO DE DATOS'!$S$19 -> 198.91278
A55: TOTAL (1ra Cuota) | B55: n/a | C55: =SUM(C52:C54) -> 7070.64232 | D55: =SUM(D52:D54) -> 5481.78288 | E55: 3707.24536 | F55: 2611.8456 | G55: 1856.51928
A56: TOTAL (2da Cuota) | B56: n/a | C56: =C55-C53*'INGRESO DE DATOS'!$T$19 -> 6986.64232 | D56: =D55-D53*'INGRESO DE DATOS'!$T$19 -> 5397.78288 | E56: =E55-E53*'INGRESO DE DATOS'!$T$19 -> 3623.24536 | F56: =F55-F53*'INGRESO DE DATOS'!$T$19 -> 2527.8456 | G56: =G55-G53*'INGRESO DE DATOS'!$T$19 -> 1772.51928
A57: GRAN TOTAL | B57: n/a | C57: =SUM(C55:C56) -> 14057.28464 | D57: =SUM(D55:D56) -> 10879.56576 | E57: 7330.49072 | F57: 5139.6912 | G57: 3629.03856
A60: TARIFAS TRIMESTRALES
A61: Prima de Titular | B61: n/a | C61: =VLOOKUP($B$19,Tablas!$A$600:$H$662,4,TRUE) -> 1041.35625 | D61: =VLOOKUP($B$19,Tablas!$A$600:$H$662,5,TRUE) -> 857.16125 | E61: =VLOOKUP($B$19,Tablas!$A$600:$H$662,6,TRUE) -> 554.455 | F61: =VLOOKUP($B$19,Tablas!$A$600:$H$662,7,TRUE) -> 395.0375 | G61: =VLOOKUP($B$19,Tablas!$A$600:$H$662,8,TRUE) -> 280.73375
A62: Prima de Cónyuge | B62: n/a | C62: =IF($B$17=1,0,(VLOOKUP($G$19,Tablas!$A$600:$H$662,4,TRUE))) -> 1498.3375 | D62: =IF($B$17=1,0,(VLOOKUP($G$19,Tablas!$A$600:$H$662,5,TRUE))) -> 1281.885 | E62: =IF($B$17=1,0,(VLOOKUP($G$19,Tablas!$A$600:$H$662,6,TRUE))) -> 842.435 | F62: =IF($B$17=1,0,(VLOOKUP($G$19,Tablas!$A$600:$H$662,7,TRUE))) -> 577.3625 | G62: =IF($B$17=1,0,(VLOOKUP($G$19,Tablas!$A$600:$H$662,8,TRUE))) -> 402.985
A63: Primas Hijos | B63: n/a | C63: =IF($G$17=0,0,(VLOOKUP($G$17,Tablas!$A$663:$H$665,4,TRUE))) -> 697.0425 | D63: =IF($G$17=0,0,(VLOOKUP($G$17,Tablas!$A$663:$H$665,5,TRUE))) -> 361.61125 | E63: =IF($G$17=0,0,(VLOOKUP($G$17,Tablas!$A$663:$H$665,6,TRUE))) -> 281.66875 | F63: =IF($G$17=0,0,(VLOOKUP($G$17,Tablas!$A$663:$H$665,7,TRUE))) -> 198.6875 | G63: =IF($G$17=0,0,(VLOOKUP($G$17,Tablas!$A$663:$H$665,8,TRUE))) -> 137.445
A64: Rider: Complicaciones de Maternidad | B64: n/a | C64: =+IF($B$1=FALSE,0,Tablas!D666) -> 0 | D64: =+IF($B$1=FALSE,0,Tablas!E666) -> 0 | E64: =+IF($B$1=FALSE,0,Tablas!F666) -> 0 | F64: =+IF($B$1=FALSE,0,Tablas!G666) -> 0 | G64: =+IF($B$1=FALSE,0,Tablas!H666) -> 0
A65: Rider: Trasplante Organos | B65: n/a | C65: =IF($C$1=FALSE,0,Tablas!D667) -> 0 | D65: =IF($C$1=FALSE,0,Tablas!E667) -> 0 | E65: =IF($C$1=FALSE,0,Tablas!F667) -> 0 | F65: =IF($C$1=FALSE,0,Tablas!G667) -> 0 | G65: =IF($C$1=FALSE,0,Tablas!H667) -> 0
A66: Rider: Eliminación de Deducible | B66: n/a | C66: =IF($B$2=FALSE,0,Tablas!D668) -> 0 | D66: =IF($B$2=FALSE,0,Tablas!E668) -> 0 | E66: =IF($B$2=FALSE,0,Tablas!F668) -> 0 | F66: =IF($B$2=FALSE,0,Tablas!G668) -> 0 | G66: =IF($B$2=FALSE,0,Tablas!H668) -> 0
A67: TOTAL PRIMA NETA | B67: n/a | C67: =SUM(C61:C66) -> 3236.73625 | D67: 2500.6575 | E67: 1678.55875 | F67: 1171.0875 | G67: 821.16375
A68: Costo Administrativo Anual | B68: n/a | C68: 75 | D68: 75 | E68: 75 | F68: 75 | G68: 75
A69: IVA (12%) | B69: n/a | C69: =SUM(C67:C68)*'INGRESO DE DATOS'!$S$19 -> 397.40835 | D69: =SUM(D67:D68)*'INGRESO DE DATOS'!$S$19 -> 309.0789 | E69: =SUM(E67:E68)*'INGRESO DE DATOS'!$S$19 -> 210.42705 | F69: =SUM(F67:F68)*'INGRESO DE DATOS'!$S$19 -> 149.5305 | G69: =SUM(G67:G68)*'INGRESO DE DATOS'!$S$19 -> 107.53965
A70: TOTAL (1ra Cuota) | B70: n/a | C70: =SUM(C67:C69) -> 3709.1446 | D70: =SUM(D67:D69) -> 2884.7364 | E70: 1963.9858 | F70: 1395.618 | G70: 1003.7034
A71: TOTAL (2da a 4ta Cuota) | B71: n/a | C71: =C70-C68*'INGRESO DE DATOS'!$T$19 -> 3625.1446 | D71: =D70-D68*'INGRESO DE DATOS'!$T$19 -> 2800.7364 | E71: =E70-E68*'INGRESO DE DATOS'!$T$19 -> 1879.9858 | F71: =F70-F68*'INGRESO DE DATOS'!$T$19 -> 1311.618 | G71: =G70-G68*'INGRESO DE DATOS'!$T$19 -> 919.7034
A72: GRAN TOTAL | B72: n/a | C72: =C70+C71*3 -> 14584.5784 | D72: =D70+D71*3 -> 11286.9456 | E72: =E70+E71*3 -> 7603.9432 | F72: 5330.472 | G72: 3762.8136
A75: Este presupuesto solamente tiene carácter informativo y en ningún momento expresa compromiso legal para suministrarle cobertura de seguro. La emisión de una póliza de seguro Bupa está sujeta a todas las evaluaciones de riesgo por parte de Bupa y a la recepción de todos los pagos de prima requeridos.

Sheet Resumen de Tarifas
A5: Cotización de Seguro Médico Internacional Resumen de Tarifas Tarifas en US$ | Validas: 1 de enero de 2024 | I5: REGIÓN
I7: =IF('INGRESO DE DATOS'!W14="Guatemala","GUATEMALA",'INGRESO DE DATOS'!W14) -> GUATEMALA
A13: Nombre del asegurado principal | B13: =+'INGRESO DE DATOS'!$C$36 -> John Doe
A15: Broker/Agente | B15: =+'INGRESO DE DATOS'!$C$44 -> Agencia
A17: Número de Adultos en la Póliza | B17: =+'INGRESO DE DATOS'!$C$38 -> 2 | F17: Dependientes (menores de 24 años) | I17: =+'INGRESO DE DATOS'!$F$38 -> 2
F18: =IF('INGRESO DE DATOS'!$P$2=TRUE, "Cotización para dependiente de 24 años","") -> 
A19: Edad del Titular | B19: =+'INGRESO DE DATOS'!$C$40 -> 32 | F19: Edad del Cónyuge | I19: =+'INGRESO DE DATOS'!$F$40 -> 46
A22: DEDUCIBLES | D22: PLAN 1 | E22: PLAN 2 | F22: PLAN 3 | G22: PLAN 4 | H22: PLAN 5 | I22: PLAN 6
A23: Dentro del pais de residencia | D23: n/a | E23: 1000 | F23: 2000 | G23: 5000 | H23: 10000 | I23: 20000
A24: Fuera del pais de residencia | D24: n/a | E24: 2000 | F24: 3000 | G24: 5000 | H24: 10000 | I24: 20000
A26: PRODUCTOS
A27: Bupa Complete Care
A28: Tarifas Anuales | D28: n/a | E28: ='Bupa Complete Care'!H42 -> 50277.92 | F28: ='Bupa Premium Care'!I46 -> 24515.68 | G28: ='Bupa Premium Care'!J46 -> 19204.64 | H28: ='Bupa Premium Care'!K46 -> 15659.84 | I28: ='Bupa Premium Care'!L46 -> 12595.52
A29: Tarifas Semestrales | D29: n/a | E29: ='Bupa Complete Care'!H56 -> 53289.5552 | F29: ='Bupa Complete Care'!I56 -> 38440.0576 | G29: ='Bupa Complete Care'!J56 -> 28752.5056 | H29: ='Bupa Complete Care'!K56 -> 21822.8192 | I29: ='Bupa Complete Care'!L56 -> 16701.2384
A30: Tarifas Trimestrales | D30: n/a | E30: ='Bupa Complete Care'!H69 -> 55297.312 | F30: ='Bupa Complete Care'!I69 -> 39887.456 | G30: ='Bupa Complete Care'!J69 -> 29834.336 | H30: ='Bupa Complete Care'!K69 -> 22643.152 | I30: ='Bupa Complete Care'!L69 -> 17328.304
A31: Bupa Premium Care
A32: Tarifas Anuales | D32: n/a | E32: ='Bupa Premium Care'!H46 -> 31475.36 | F32: ='Bupa Premium Care'!I46 -> 24515.68 | G32: ='Bupa Premium Care'!J46 -> 19204.64 | H32: ='Bupa Premium Care'!K46 -> 15659.84 | I32: ='Bupa Premium Care'!L46 -> 12595.52
A33: Tarifas Semestrales | D33: n/a | E33: ='Bupa Premium Care'!H61 -> 33358.8416 | F33: ='Bupa Premium Care'!I61 -> 25981.5808 | G33: ='Bupa Premium Care'!J61 -> 20351.8784 | H33: ='Bupa Premium Care'!K61 -> 16594.3904 | I33: ='Bupa Premium Care'!L61 -> 13346.2112
A34: Tarifas Trimestrales | D34: n/a | E34: ='Bupa Premium Care'!H76 -> 34614.496 | F34: ='Bupa Premium Care'!I76 -> 26958.848 | G34: ='Bupa Premium Care'!J76 -> 21116.704 | H34: ='Bupa Premium Care'!K76 -> 17217.424 | I34: ='Bupa Premium Care'!L76 -> 13846.672
A35: Bupa Secure Care
A36: Tarifas Anuales | D36: n/a | E36: ='Bupa Secure Care'!C39 -> 20356.56 | F36: ='Bupa Secure Care'!D39 -> 14873.208 | G36: ='Bupa Secure Care'!E39 -> 11706.632 | H36: ='Bupa Secure Care'!F39 -> 9680.44 | I36: ='Bupa Secure Care'!G39 -> 7322.252
A37: Tarifas Semestrales | D37: n/a | E37: ='Bupa Secure Care'!C53 -> 31794.112 | F37: ='Bupa Secure Care'!D53 -> 24897.6672 | G37: ='Bupa Secure Care'!E53 -> 18761.0304 | H37: ='Bupa Secure Care'!F53 -> 15890.3808 | I37: ='Bupa Secure Care'!G53 -> 12079.4688
A38: Tarifas Trimestrales | D38: n/a | E38: ='Bupa Secure Care'!C67 -> 32990.72 | F38: ='Bupa Secure Care'!D67 -> 25834.032 | G38: ='Bupa Secure Care'!E67 -> 19465.824 | H38: ='Bupa Secure Care'!F67 -> 16486.848 | I38: ='Bupa Secure Care'!G67 -> 12532.128
A39: Bupa Essential Care
A40: Tarifas Anuales | D40: n/a | E40: ='Bupa Essential Care'!C39 -> 7056 | F40: ='Bupa Essential Care'!D39 -> 6547.52 | G40: ='Bupa Essential Care'!E39 -> 4662.56 | H40: ='Bupa Essential Care'!F39 -> 3449.6 | I40: ='Bupa Essential Care'!G39 -> 2506.56
A41: Tarifas Semestrales | D41: n/a | E41: ='Bupa Essential Care'!C53 -> 7474.32 | F41: ='Bupa Essential Care'!D53 -> 6935.3312 | G41: ='Bupa Essential Care'!E53 -> 4937.2736 | H41: ='Bupa Essential Care'!F53 -> 3651.536 | I41: ='Bupa Essential Care'!G53 -> 2651.9136
A42: Tarifas Trimestrales | D42: n/a | E42: ='Bupa Essential Care'!C67 -> 6895.5 | F42: ='Bupa Essential Care'!D67 -> 7193.872 | G42: ='Bupa Essential Care'!E67 -> 5120.416 | H42: ='Bupa Essential Care'!F67 -> 3786.16 | I42: ='Bupa Essential Care'!G67 -> 2748.816
A43: Bupa Classic Care
A44: Tarifas Anuales | D44: n/a | E44: ='Bupa Classic Care'!C42 -> 13266.344 | F44: ='Bupa Classic Care'!D42 -> 10268.496 | G44: ='Bupa Classic Care'!E42 -> 6920.312 | H44: ='Bupa Classic Care'!F42 -> 4853.52 | I44: ='Bupa Classic Care'!G42 -> 3428.376
A45: Tarifas Semestrales | D45: n/a | E45: ='Bupa Classic Care'!C57 -> 14057.28464 | F45: ='Bupa Classic Care'!D57 -> 10879.56576 | G45: ='Bupa Classic Care'!E57 -> 7330.49072 | H45: ='Bupa Classic Care'!F57 -> 5139.6912 | I45: ='Bupa Classic Care'!G57 -> 3629.03856
A46: Tarifas Trimestrales | D46: n/a | E46: ='Bupa Classic Care'!C72 -> 14584.5784 | F46: ='Bupa Classic Care'!D72 -> 11286.9456 | G46: ='Bupa Classic Care'!E72 -> 7603.9432 | H46: ='Bupa Classic Care'!F72 -> 5330.472 | I46: ='Bupa Classic Care'!G72 -> 3762.8136

Sheet Comparacion de Beneficios (hidden)
A1: 2023 BUPA CARE COMPARACION DE BENEFICIOS

Sheet Tablas (hidden)
L1: Complete | M1: Premium | N1: Secure | O1: Essential | P1: Classic
B2: REGIÓN | C2: ='INGRESO DE DATOS'!W14 -> Guatemala | E2: FACTOR SEMESTRAL : | G2: 0.53 | I2: TOTAL DISCOUNT | K2: ='INGRESO DE DATOS'!O42 -> 1 | L2: ='INGRESO DE DATOS'!P42 -> 1 | M2: ='INGRESO DE DATOS'!Q42 -> 1 | N2: ='INGRESO DE DATOS'!R42 -> 1 | O2: ='INGRESO DE DATOS'!S42 -> 1 | P2: ='INGRESO DE DATOS'!T42 -> 0.85 | T2: Impuesto (14.94%) | V2: =14.94/100+1 -> 1.1494
E3: FACTOR TRIMESTRAL | G3: 0.275
A6: BUPA COMPLETE CARE
A7: TARIFAS ANUALES
A9: EDAD | C9: CW1 | D9: CW2 | E9: CW3 | F9: CW4 | G9: CW5 | H9: CW6
A10: 18 | B10: 18-24 | D10: =R10 -> 13833 | E10: =S10 -> 9474 | F10: 6651 | G10: 4591 | H10: 3509 | L10: =Guatemala!D9 -> 13833 | M10: =Guatemala!E9 -> 9474 | N10: =Guatemala!F9 -> 6651 | O10: =Guatemala!G9 -> 4591 | P10: =Guatemala!H9 -> 3509 | R10: =L10*$L$2 -> 13833 | S10: =M10*$L$2 -> 9474 | T10: 6651 | U10: 4591 | V10: 3509
A11: 25 | B11: 25-29 | D11: =R11 -> 14493 | E11: =S11 -> 10520 | F11: =T11 -> 7390 | G11: =U11 -> 5036 | H11: =V11 -> 3870 | L11: =Guatemala!D10 -> 14493 | M11: =Guatemala!E10 -> 10520 | N11: =Guatemala!F10 -> 7390 | O11: =Guatemala!G10 -> 5036 | P11: =Guatemala!H10 -> 3870 | R11: =L11*$L$2 -> 14493 | S11: =M11*$L$2 -> 10520 | T11: =N11*$L$2 -> 7390 | U11: =O11*$L$2 -> 5036 | V11: =P11*$L$2 -> 3870
A12: 30 | B12: 30-34 | D12: 15160 | E12: 11273 | F12: 8222 | G12: 6121 | H12: 4682 | L12: =Guatemala!D11 -> 15160 | M12: =Guatemala!E11 -> 11273 | N12: =Guatemala!F11 -> 8222 | O12: =Guatemala!G11 -> 6121 | P12: =Guatemala!H11 -> 4682 | R12: 15160 | S12: 11273 | T12: 8222 | U12: 6121 | V12: 4682
A13: 35 | B13: 35-39 | D13: 16961 | E13: 12602 | F13: 9233 | G13: 6837 | H13: 5221 | L13: =Guatemala!D12 -> 16961 | M13: =Guatemala!E12 -> 12602 | N13: =Guatemala!F12 -> 9233 | O13: =Guatemala!G12 -> 6837 | P13: =Guatemala!H12 -> 5221 | R13: 16961 | S13: 12602 | T13: 9233 | U13: 6837 | V13: 5221
A14: 40 | B14: 40-44 | D14: 19702 | E14: 13833 | F14: 10252 | G14: 7556 | H14: 5757 | L14: =Guatemala!D13 -> 19702 | M14: =Guatemala!E13 -> 13833 | N14: =Guatemala!F13 -> 10252 | O14: =Guatemala!G13 -> 7556 | P14: =Guatemala!H13 -> 5757 | R14: 19702 | S14: 13833 | T14: 10252 | U14: 7556 | V14: 5757
A15: 45 | B15: 45-49 | D15: 21980 | E15: 15443 | F15: 11448 | G15: 8456 | H15: 6477 | L15: =Guatemala!D14 -> 21980 | M15: =Guatemala!E14 -> 15443 | N15: =Guatemala!F14 -> 11448 | O15: =Guatemala!G14 -> 8456 | P15: =Guatemala!H14 -> 6477 | R15: 21980 | S15: 15443 | T15: 11448 | U15: 8456 | V15: 6477
A16: 50 | B16: 50-54 | D16: 28702 | E16: 20369 | F16: 15052 | G16: 12052 | H16: 9267 | L16: =Guatemala!D15 -> 28702 | M16: =Guatemala!E15 -> 20369 | N16: =Guatemala!F15 -> 15052 | O16: =Guatemala!G15 -> 12052 | P16: =Guatemala!H15 -> 9267 | R16: 28702 | S16: 20369 | T16: 15052 | U16: 12052 | V16: 9267
A17: 55 | B17: 55-59 | D17: 30595 | E17: 21693 | F17: 16066 | G17: 12859 | H17: 9804 | L17: =Guatemala!D16 -> 30595 | M17: =Guatemala!E16 -> 21693 | N17: =Guatemala!F16 -> 16066 | O17: =Guatemala!G16 -> 12859 | P17: =Guatemala!H16 -> 9804 | R17: 30595 | S17: 21693 | T17: 16066 | U17: 12859 | V17: 9804
A18: 60 | B18: 60 | D18: 33250 | E18: 23590 | F18: 18281 | G18: 15287 | H18: 12319 | L18: =Guatemala!D17 -> 33250 | M18: =Guatemala!E17 -> 23590 | N18: =Guatemala!F17 -> 18281 | O18: =Guatemala!G17 -> 15287 | P18: =Guatemala!H17 -> 12319 | R18: 33250 | S18: 23590 | T18: 18281 | U18: 15287 | V18: 12319
A19: 61 | B19: 61 | D19: 35711 | E19: 25298 | F19: 19573 | G19: 16457 | H19: 13221 | L19: =Guatemala!D18 -> 35711 | M19: =Guatemala!E18 -> 25298 | N19: =Guatemala!F18 -> 19573 | O19: =Guatemala!G18 -> 16457 | P19: =Guatemala!H18 -> 13221 | R19: 35711 | S19: 25298 | T19: 19573 | U19: 16457 | V19: 13221
A20: 62 | B20: 62 | D20: 39121 | E20: 27663 | F20: 21422 | G20: 17981 | H20: 14476 | L20: =Guatemala!D19 -> 39121 | M20: =Guatemala!E19 -> 27663 | N20: =Guatemala!F19 -> 21422 | O20: =Guatemala!G19 -> 17981 | P20: =Guatemala!H19 -> 14476 | R20: 39121 | S20: 27663 | T20: 21422 | U20: 17981 | V20: 14476
A21: 63 | B21: 63 | D21: 41584 | E21: 29460 | F21: 22807 | G21: 19155 | H21: 15376 | L21: =Guatemala!D20 -> 41584 | M21: =Guatemala!E20 -> 29460 | N21: =Guatemala!F20 -> 22807 | O21: =Guatemala!G20 -> 19155 | P21: =Guatemala!H20 -> 15376 | R21: 41584 | S21: 29460 | T21: 22807 | U21: 19155 | V21: 15376
A22: 64 | B22: 64 | D22: 44994 | E22: 31830 | F22: 24654 | G22: 20683 | H22: 16636 | L22: =Guatemala!D21 -> 44994 | M22: =Guatemala!E21 -> 31830 | N22: =Guatemala!F21 -> 24654 | O22: =Guatemala!G21 -> 20683 | P22: =Guatemala!H21 -> 16636 | R22: 44994 | S22: 31830 | T22: 24654 | U22: 20683 | V22: 16636
A23: 65 | B23: 65 | D23: 58826 | E23: 41584 | F23: 31206 | G23: 27605 | H23: 23466 | L23: =Guatemala!D22 -> 58826 | M23: =Guatemala!E22 -> 41584 | N23: =Guatemala!F22 -> 31206 | O23: =Guatemala!G22 -> 27605 | P23: =Guatemala!H22 -> 23466 | R23: 58826 | S23: 41584 | T23: 31206 | U23: 27605 | V23: 23466
A24: 66 | B24: 66 | D24: 68390 | E24: 48312 | F24: 36280 | G24: 32102 | H24: 27242 | L24: =Guatemala!D23 -> 68390 | M24: =Guatemala!E23 -> 48312 | N24: =Guatemala!F23 -> 36280 | O24: =Guatemala!G23 -> 32102 | P24: =Guatemala!H23 -> 27242 | R24: 68390 | S24: 48312 | T24: 36280 | U24: 32102 | V24: 27242
A25: 67 | B25: 67 | D25: 74642 | E25: 52764 | F25: 39602 | G25: 35066 | H25: 29762 | L25: =Guatemala!D24 -> 74642 | M25: =Guatemala!E24 -> 52764 | N25: =Guatemala!F24 -> 39602 | O25: =Guatemala!G24 -> 35066 | P25: =Guatemala!H24 -> 29762 | R25: 74642 | S25: 52764 | T25: 39602 | U25: 35066 | V25: 29762
A26: 68 | B26: 68 | D26: 82692 | E26: 58443 | F26: 43850 | G26: 38841 | H26: 32999 | L26: =Guatemala!D25 -> 82692 | M26: =Guatemala!E25 -> 58443 | N26: =Guatemala!F25 -> 43850 | O26: =Guatemala!G25 -> 38841 | P26: =Guatemala!H25 -> 32999 | R26: 82692 | S26: 58443 | T26: 43850 | U26: 38841 | V26: 32999
A27: 69 | B27: 69 | D27: 90934 | E27: 64225 | F27: 48283 | G27: 42707 | H27: 36231 | L27: =Guatemala!D26 -> 90934 | M27: =Guatemala!E26 -> 64225 | N27: =Guatemala!F26 -> 48283 | O27: =Guatemala!G26 -> 42707 | P27: =Guatemala!H26 -> 36231 | R27: 90934 | S27: 64225 | T27: 48283 | U27: 42707 | V27: 36231
A28: 70 | B28: 70 | D28: 111959 | E28: 78238 | F28: 56771 | G28: 49720 | H28: 42617 | L28: =Guatemala!D27 -> 111959 | M28: =Guatemala!E27 -> 78238 | N28: =Guatemala!F27 -> 56771 | O28: =Guatemala!G27 -> 49720 | P28: =Guatemala!H27 -> 42617 | R28: 111959 | S28: 78238 | T28: 56771 | U28: 49720 | V28: 42617
A29: 71 | B29: 71 | D29: 116317 | E29: 81274 | F29: 58992 | G29: 51699 | H29: 44326 | L29: =Guatemala!D28 -> 116317 | M29: =Guatemala!E28 -> 81274 | N29: =Guatemala!F28 -> 58992 | O29: =Guatemala!G28 -> 51699 | P29: =Guatemala!H28 -> 44326 | R29: 116317 | S29: 81274 | T29: 58992 | U29: 51699 | V29: 44326
A30: 72 | B30: 72 | D30: 119632 | E30: 83640 | F30: 60651 | G30: 53135 | H30: 45585 | L30: =Guatemala!D29 -> 119632 | M30: =Guatemala!E29 -> 83640 | N30: =Guatemala!F29 -> 60651 | O30: =Guatemala!G29 -> 53135 | P30: =Guatemala!H29 -> 45585 | R30: 119632 | S30: 83640 | T30: 60651 | U30: 53135 | V30: 45585
A31: 73 | B31: 73 | D31: 123990 | E31: 86674 | F31: 62871 | G31: 55111 | H31: 47292 | L31: =Guatemala!D30 -> 123990 | M31: =Guatemala!E30 -> 86674 | N31: =Guatemala!F30 -> 62871 | O31: =Guatemala!G30 -> 55111 | P31: =Guatemala!H30 -> 47292 | R31: 123990 | S31: 86674 | T31: 62871 | U31: 55111 | V31: 47292
A32: 74 | B32: 74 | D32: 126264 | E32: 88187 | F32: 64069 | G32: 56102 | H32: 48103 | L32: =Guatemala!D31 -> 126264 | M32: =Guatemala!E31 -> 88187 | N32: =Guatemala!F31 -> 64069 | O32: =Guatemala!G31 -> 56102 | P32: =Guatemala!H31 -> 48103 | R32: 126264 | S32: 88187 | T32: 64069 | U32: 56102 | V32: 48103
A33: 75 | B33: 75+ | D33: 131756 | E33: 92067 | F33: 66833 | G33: 58531 | H33: 50168 | L33: =Guatemala!D32 -> 131756 | M33: =Guatemala!E32 -> 92067 | N33: =Guatemala!F32 -> 66833 | O33: =Guatemala!G32 -> 58531 | P33: =Guatemala!H32 -> 50168 | R33: 131756 | S33: 92067 | T33: 66833 | U33: 58531 | V33: 50168
A34: 1 | B34: 1 Child | D34: 4836 | E34: 3508 | F34: 2683 | G34: 2252 | H34: 1621 | L34: =Guatemala!D33 -> 4836 | M34: =Guatemala!E33 -> 3508 | N34: =Guatemala!F33 -> 2683 | O34: =Guatemala!G33 -> 2252 | P34: =Guatemala!H33 -> 1621 | R34: 4836 | S34: 3508 | T34: 2683 | U34: 2252 | V34: 1621
A35: 2 | B35: 2 Children | D35: 7676 | E35: 5592 | F35: 4253 | G35: 3509 | H35: 2613 | L35: =Guatemala!D34 -> 7676 | M35: =Guatemala!E34 -> 5592 | N35: =Guatemala!F34 -> 4253 | O35: =Guatemala!G34 -> 3509 | P35: =Guatemala!H34 -> 2613 | R35: 7676 | S35: 5592 | T35: 4253 | U35: 3509 | V35: 2613
A36: 3 | B36: 3+ Children | D36: 11177 | E36: 8149 | F36: 6284 | G36: 5126 | H36: 3784 | L36: =Guatemala!D35 -> 11177 | M36: =Guatemala!E35 -> 8149 | N36: =Guatemala!F35 -> 6284 | O36: =Guatemala!G35 -> 5126 | P36: =Guatemala!H35 -> 3784 | R36: 11177 | S36: 8149 | T36: 6284 | U36: 5126 | V36: 3784
A37: 1 | B37: Rider Comp. Maternidad | D37: =L37 -> 0 | E37: =M37 -> 0 | F37: =N37 -> 225 | G37: =O37 -> 225 | H37: =P37 -> 225 | L37: 0 | M37: 0 | N37: 225 | O37: 225 | P37: 225
A38: 1 | B38: Transplante de organos | D38: 0 | E38: 0 | F38: 0 | G38: 0 | H38: 0 | L38: 0 | M38: 0 | N38: 0 | O38: 0 | P38: 0
D39: 0 | E39: 0 | F39: 0 | G39: 0 | H39: 0
A42: TARIFAS SEMESTRALES
A44: EDAD | C44: CW1 | D44: CW2 | E44: CW3 | F44: CW4 | G44: CW5 | H44: CW6
A45: 18 | B45: 18-24 | D45: =D10*$G$2 -> 7331.49 | E45: =E10*$G$2 -> 5021.22 | F45: 3525.03 | G45: 2433.23 | H45: =H10*$G$2 -> 1859.77
A46: 25 | B46: 25-29 | D46: =D11*$G$2 -> 7681.29 | E46: 5575.6 | F46: 3916.7 | G46: 2669.08 | H46: 2051.1
A47: 30 | B47: 30-34 | D47: =D12*$G$2 -> 8034.8 | E47: 5974.69 | F47: 4357.66 | G47: 3244.13 | H47: 2481.46
A48: 35 | B48: 35-39 | D48: =D13*$G$2 -> 8989.33 | E48: 6679.06 | F48: 4893.49 | G48: 3623.61 | H48: 2767.13
A49: 40 | B49: 40-44 | D49: =D14*$G$2 -> 10442.06 | E49: 7331.49 | F49: 5433.56 | G49: 4004.68 | H49: 3051.21
A50: 45 | B50: 45-49 | D50: =D15*$G$2 -> 11649.4 | E50: 8184.79 | F50: 6067.44 | G50: 4481.68 | H50: 3432.81
A51: 50 | B51: 50-54 | D51: =D16*$G$2 -> 15212.06 | E51: 10795.57 | F51: 7977.56 | G51: 6387.56 | H51: 4911.51
A52: 55 | B52: 55-59 | D52: =D17*$G$2 -> 16215.35 | E52: 11497.29 | F52: 8514.98 | G52: 6815.27 | H52: 5196.12
A53: 60 | B53: 60 | D53: =D18*$G$2 -> 17622.5 | E53: 12502.7 | F53: 9688.93 | G53: 8102.11 | H53: 6529.07
A54: 61 | B54: 61 | D54: =D19*$G$2 -> 18926.83 | E54: 13407.94 | F54: 10373.69 | G54: 8722.21 | H54: 7007.13
A55: 62 | B55: 62 | D55: =D20*$G$2 -> 20734.13 | E55: 14661.39 | F55: 11353.66 | G55: 9529.93 | H55: 7672.28
A56: 63 | B56: 63 | D56: =D21*$G$2 -> 22039.52 | E56: 15613.8 | F56: 12087.71 | G56: 10152.15 | H56: 8149.28
A57: 64 | B57: 64 | D57: =D22*$G$2 -> 23846.82 | E57: 16869.9 | F57: 13066.62 | G57: 10961.99 | H57: 8817.08
A58: 65 | B58: 65 | D58: =D23*$G$2 -> 31177.78 | E58: 22039.52 | F58: 16539.18 | G58: 14630.65 | H58: 12436.98
A59: 66 | B59: 66 | D59: =D24*$G$2 -> 36246.7 | E59: 25605.36 | F59: 19228.4 | G59: 17014.06 | H59: 14438.26
A60: 67 | B60: 67 | D60: =D25*$G$2 -> 39560.26 | E60: 27964.92 | F60: 20989.06 | G60: 18584.98 | H60: 15773.86
A61: 68 | B61: 68 | D61: =D26*$G$2 -> 43826.76 | E61: 30974.79 | F61: 23240.5 | G61: 20585.73 | H61: 17489.47
A62: 69 | B62: 69 | D62: =D27*$G$2 -> 48195.02 | E62: 34039.25 | F62: 25589.99 | G62: 22634.71 | H62: 19202.43
A63: 70 | B63: 70 | D63: =D28*$G$2 -> 59338.27 | E63: 41466.14 | F63: 30088.63 | G63: 26351.6 | H63: 22587.01
A64: 71 | B64: 71 | D64: =D29*$G$2 -> 61648.01 | E64: 43075.22 | F64: 31265.76 | G64: 27400.47 | H64: 23492.78
A65: 72 | B65: 72 | D65: =D30*$G$2 -> 63404.96 | E65: 44329.2 | F65: 32145.03 | G65: 28161.55 | H65: 24160.05
A66: 73 | B66: 73 | D66: =D31*$G$2 -> 65714.7 | E66: 45937.22 | F66: 33321.63 | G66: 29208.83 | H66: 25064.76
A67: 74 | B67: 74 | D67: =D32*$G$2 -> 66919.92 | E67: 46739.11 | F67: 33956.57 | G67: 29734.06 | H67: 25494.59
A68: 75 | B68: 75+ | D68: =D33*$G$2 -> 69830.68 | E68: 48795.51 | F68: 35421.49 | G68: 31021.43 | H68: 26589.04
A69: 1 | B69: 1 Child | D69: =D34*$G$2 -> 2563.08 | E69: 1859.24 | F69: 1421.99 | G69: 1193.56 | H69: 859.13
A70: 2 | B70: 2 Children | D70: =D35*$G$2 -> 4068.28 | E70: 2963.76 | F70: 2254.09 | G70: 1859.77 | H70: 1384.89
A71: 3 | B71: 3+ Children | D71: =D36*$G$2 -> 5923.81 | E71: 4318.97 | F71: 3330.52 | G71: 2716.78 | H71: 2005.52
A72: 1 | B72: Rider Comp. Maternidad | D72: =D37*$G$2 -> 0 | E72: 0 | F72: 119.25 | G72: 119.25 | H72: 119.25
A73: 1 | B73: Transplante de organos | D73: =D38*$G$2 -> 0 | E73: 0 | F73: 0 | G73: 0 | H73: 0
A77: TARIFAS TRIMESTRALES
A78: EDAD | C78: CW1 | D78: CW2 | E78: CW3 | F78: CW4 | G78: CW5 | H78: CW6
A79: 18 | B79: 18-24 | D79: =D10*$G$3 -> 3804.075 | E79: =E10*$G$3 -> 2605.35 | F79: 1829.025 | G79: 1262.525 | H79: 964.975
A80: 25 | B80: 25-29 | D80: =D11*$G$3 -> 3985.575 | E80: 2893 | F80: 2032.25 | G80: 1384.9 | H80: 1064.25
A81: 30 | B81: 30-34 | D81: =D12*$G$3 -> 4169 | E81: 3100.075 | F81: 2261.05 | G81: 1683.275 | H81: 1287.55
A82: 35 | B82: 35-39 | D82: =D13*$G$3 -> 4664.275 | E82: 3465.55 | F82: 2539.075 | G82: 1880.175 | H82: 1435.775
A83: 40 | B83: 40-44 | D83: =D14*$G$3 -> 5418.05 | E83: 3804.075 | F83: 2819.3 | G83: 2077.9 | H83: 1583.175
A84: 45 | B84: 45-49 | D84: =D15*$G$3 -> 6044.5 | E84: 4246.825 | F84: 3148.2 | G84: 2325.4 | H84: 1781.175
A85: 50 | B85: 50-54 | D85: =D16*$G$3 -> 7893.05 | E85: 5601.475 | F85: 4139.3 | G85: 3314.3 | H85: 2548.425
A86: 55 | B86: 55-59 | D86: =D17*$G$3 -> 8413.625 | E86: 5965.575 | F86: 4418.15 | G86: 3536.225 | H86: 2696.1
A87: 60 | B87: 60 | D87: =D18*$G$3 -> 9143.75 | E87: 6487.25 | F87: 5027.275 | G87: 4203.925 | H87: 3387.725
A88: 61 | B88: 61 | D88: =D19*$G$3 -> 9820.525 | E88: 6956.95 | F88: 5382.575 | G88: 4525.675 | H88: 3635.775
A89: 62 | B89: 62 | D89: =D20*$G$3 -> 10758.275 | E89: 7607.325 | F89: 5891.05 | G89: 4944.775 | H89: 3980.9
A90: 63 | B90: 63 | D90: =D21*$G$3 -> 11435.6 | E90: 8101.5 | F90: 6271.925 | G90: 5267.625 | H90: 4228.4
A91: 64 | B91: 64 | D91: =D22*$G$3 -> 12373.35 | E91: 8753.25 | F91: 6779.85 | G91: 5687.825 | H91: 4574.9
A92: 65 | B92: 65 | D92: =D23*$G$3 -> 16177.15 | E92: 11435.6 | F92: 8581.65 | G92: 7591.375 | H92: 6453.15
A93: 66 | B93: 66 | D93: =D24*$G$3 -> 18807.25 | E93: 13285.8 | F93: 9977 | G93: 8828.05 | H93: 7491.55
A94: 67 | B94: 67 | D94: =D25*$G$3 -> 20526.55 | E94: 14510.1 | F94: 10890.55 | G94: 9643.15 | H94: 8184.55
A95: 68 | B95: 68 | D95: =D26*$G$3 -> 22740.3 | E95: 16071.825 | F95: 12058.75 | G95: 10681.275 | H95: 9074.725
A96: 69 | B96: 69 | D96: =D27*$G$3 -> 25006.85 | E96: 17661.875 | F96: 13277.825 | G96: 11744.425 | H96: 9963.525
A97: 70 | B97: 70 | D97: =D28*$G$3 -> 30788.725 | E97: 21515.45 | F97: 15612.025 | G97: 13673 | H97: 11719.675
A98: 71 | B98: 71 | D98: =D29*$G$3 -> 31987.175 | E98: 22350.35 | F98: 16222.8 | G98: 14217.225 | H98: 12189.65
A99: 72 | B99: 72 | D99: =D30*$G$3 -> 32898.8 | E99: 23001 | F99: 16679.025 | G99: 14612.125 | H99: 12535.875
A100: 73 | B100: 73 | D100: =D31*$G$3 -> 34097.25 | E100: 23835.35 | F100: 17289.525 | G100: 15155.525 | H100: 13005.3
A101: 74 | B101: 74 | D101: =D32*$G$3 -> 34722.6 | E101: 24251.425 | F101: 17618.975 | G101: 15428.05 | H101: 13228.325
A102: 75 | B102: 75+ | D102: =D33*$G$3 -> 36232.9 | E102: 25318.425 | F102: 18379.075 | G102: 16096.025 | H102: 13796.2
A103: 1 | B103: 1 Child | D103: =D34*$G$3 -> 1329.9 | E103: 964.7 | F103: 737.825 | G103: 619.3 | H103: 445.775
A104: 2 | B104: 2 Children | D104: =D35*$G$3 -> 2110.9 | E104: 1537.8 | F104: 1169.575 | G104: 964.975 | H104: 718.575
A105: 3 | B105: 3+ Children | D105: =D36*$G$3 -> 3073.675 | E105: 2240.975 | F105: 1728.1 | G105: 1409.65 | H105: 1040.6
A106: 1 | B106: Rider Comp. Maternidad | D106: =D37*$G$3 -> 0 | E106: 0 | F106: 61.875 | G106: 61.875 | H106: 61.875
A107: 1 | B107: Transplante de organos | D107: =D38*$G$3 -> 0 | E107: 0 | F107: 0 | G107: 0 | H107: 0
D108: =D39*$G$3 -> 0 | E108: 0 | F108: 0 | G108: 0 | H108: 0
A114: BUPA SECURE CARE
A115: TARIFAS ANUALES
A117: EDAD | D117: SE2 | E117: SE3 | F117: SE4 | G117: SE5 | H117: SE6
A118: 18 | B118: 18-24 | D118: =R118 -> 6765 | E118: =S118 -> 5296 | F118: 3950 | G118: 3357 | H118: 2516 | L118: =Guatemala!D48 -> 6765 | M118: =Guatemala!E48 -> 5296 | N118: =Guatemala!F48 -> 3950 | O118: =Guatemala!G48 -> 3357 | P118: =Guatemala!H48 -> 2516 | R118: =L118*$N$2 -> 6765 | S118: =M118*$N$2 -> 5296 | T118: 3950 | U118: 3357 | V118: 2516
A119: 25 | B119: 25-29 | D119: =R119 -> 7428 | E119: =S119 -> 5959 | F119: =T119 -> 4444 | G119: =U119 -> 3706 | H119: =V119 -> 2797 | L119: =Guatemala!D49 -> 7428 | M119: =Guatemala!E49 -> 5959 | N119: =Guatemala!F49 -> 4444 | O119: =Guatemala!G49 -> 3706 | P119: =Guatemala!H49 -> 2797 | R119: =L119*$N$2 -> 7428 | S119: =M119*$N$2 -> 5959 | T119: =N119*$N$2 -> 4444 | U119: =O119*$N$2 -> 3706 | V119: =P119*$N$2 -> 2797
A120: 30 | B120: 30-34 | D120: 8532 | E120: 6988 | F120: 5164 | G120: 4331 | H120: 3288 | L120: =Guatemala!D50 -> 8532 | M120: =Guatemala!E50 -> 6988 | N120: =Guatemala!F50 -> 5164 | O120: =Guatemala!G50 -> 4331 | P120: =Guatemala!H50 -> 3288 | R120: 8532 | S120: 6988 | T120: 5164 | U120: 4331 | V120: 3288
A121: 35 | B121: 35-39 | D121: 9416 | E121: 7870 | F121: 5740 | G121: 4821 | H121: 3630 | L121: =Guatemala!D51 -> 9416 | M121: =Guatemala!E51 -> 7870 | N121: =Guatemala!F51 -> 5740 | O121: =Guatemala!G51 -> 4821 | P121: =Guatemala!H51 -> 3630 | R121: 9416 | S121: 7870 | T121: 5740 | U121: 4821 | V121: 3630
A122: 40 | B122: 40-44 | D122: 10514 | E122: 8974 | F122: 6458 | G122: 5450 | H122: 4124 | L122: =Guatemala!D52 -> 10514 | M122: =Guatemala!E52 -> 8974 | N122: =Guatemala!F52 -> 6458 | O122: =Guatemala!G52 -> 5450 | P122: =Guatemala!H52 -> 4124 | R122: 10514 | S122: 8974 | T122: 6458 | U122: 5450 | V122: 4124
A123: 45 | B123: 45-49 | D123: 12135 | E123: 10514 | F123: 7531 | G123: 6360 | H123: 4752 | L123: =Guatemala!D53 -> 12135 | M123: =Guatemala!E53 -> 10514 | N123: =Guatemala!F53 -> 7531 | O123: =Guatemala!G53 -> 6360 | P123: =Guatemala!H53 -> 4752 | R123: 12135 | S123: 10514 | T123: 7531 | U123: 6360 | V123: 4752
A124: 50 | B124: 50-54 | D124: 13239 | E124: 11548 | F124: 8249 | G124: 6919 | H124: 5242 | L124: =Guatemala!D54 -> 13239 | M124: =Guatemala!E54 -> 11548 | N124: =Guatemala!F54 -> 8249 | O124: =Guatemala!G54 -> 6919 | P124: =Guatemala!H54 -> 5242 | R124: 13239 | S124: 11548 | T124: 8249 | U124: 6919 | V124: 5242
A125: 55 | B125: 55-59 | D125: 15588 | E125: 13820 | F125: 9752 | G125: 8245 | H125: 6152 | L125: =Guatemala!D55 -> 15588 | M125: =Guatemala!E55 -> 13820 | N125: =Guatemala!F55 -> 9752 | O125: =Guatemala!G55 -> 8245 | P125: =Guatemala!H55 -> 6152 | R125: 15588 | S125: 13820 | T125: 9752 | U125: 8245 | V125: 6152
A126: 60 | B126: 60 | D126: 16325 | E126: 14779 | F126: 10325 | G126: 8736 | H126: 6499 | L126: =Guatemala!D56 -> 16325 | M126: =Guatemala!E56 -> 14779 | N126: =Guatemala!F56 -> 10325 | O126: =Guatemala!G56 -> 8736 | P126: =Guatemala!H56 -> 6499 | R126: 16325 | S126: 14779 | T126: 10325 | U126: 8736 | V126: 6499
A127: 61 | B127: 61 | D127: 18382 | E127: 16618 | F127: 11689 | G127: 9782 | H127: 7337 | L127: =Guatemala!D57 -> 18382 | M127: =Guatemala!E57 -> 16618 | N127: =Guatemala!F57 -> 11689 | O127: =Guatemala!G57 -> 9782 | P127: =Guatemala!H57 -> 7337 | R127: 18382 | S127: 16618 | T127: 11689 | U127: 9782 | V127: 7337
A128: 62 | B128: 62 | D128: 20438 | E128: 18456 | F128: 12979 | G128: 10900 | H128: 8175 | L128: =Guatemala!D58 -> 20438 | M128: =Guatemala!E58 -> 18456 | N128: =Guatemala!F58 -> 12979 | O128: =Guatemala!G58 -> 10900 | P128: =Guatemala!H58 -> 8175 | R128: 20438 | S128: 18456 | T128: 12979 | U128: 10900 | V128: 8175
A129: 63 | B129: 63 | D129: 22429 | E129: 20293 | F129: 14269 | G129: 12018 | H129: 9011 | L129: =Guatemala!D59 -> 22429 | M129: =Guatemala!E59 -> 20293 | N129: =Guatemala!F59 -> 14269 | O129: =Guatemala!G59 -> 12018 | P129: =Guatemala!H59 -> 9011 | R129: 22429 | S129: 20293 | T129: 14269 | U129: 12018 | V129: 9011
A130: 64 | B130: 64 | D130: 24484 | E130: 22204 | F130: 15557 | G130: 13130 | H130: 9851 | L130: =Guatemala!D60 -> 24484 | M130: =Guatemala!E60 -> 22204 | N130: =Guatemala!F60 -> 15557 | O130: =Guatemala!G60 -> 13130 | P130: =Guatemala!H60 -> 9851 | R130: 24484 | S130: 22204 | T130: 15557 | U130: 13130 | V130: 9851
A131: 65 | B131: 65 | D131: 24558 | E131: 22352 | F131: 15703 | G131: 13206 | H131: 9851 | L131: =Guatemala!D61 -> 24558 | M131: =Guatemala!E61 -> 22352 | N131: =Guatemala!F61 -> 15703 | O131: =Guatemala!G61 -> 13206 | P131: =Guatemala!H61 -> 9851 | R131: 24558 | S131: 22352 | T131: 15703 | U131: 13206 | V131: 9851
A132: 66 | B132: 66 | D132: 24558 | E132: 22573 | F132: 15772 | G132: 13274 | H132: 9851 | L132: =Guatemala!D62 -> 24558 | M132: =Guatemala!E62 -> 22573 | N132: =Guatemala!F62 -> 15772 | O132: =Guatemala!G62 -> 13274 | P132: =Guatemala!H62 -> 9851 | R132: 24558 | S132: 22573 | T132: 15772 | U132: 13274 | V132: 9851
A133: 67 | B133: 67 | D133: 27275 | E133: 25144 | F133: 17492 | G133: 14738 | H133: 10970 | L133: =Guatemala!D63 -> 27275 | M133: =Guatemala!E63 -> 25144 | N133: =Guatemala!F63 -> 17492 | O133: =Guatemala!G63 -> 14738 | P133: =Guatemala!H63 -> 10970 | R133: 27275 | S133: 25144 | T133: 17492 | U133: 14738 | V133: 10970
A134: 68 | B134: 68 | D134: 29995 | E134: 27644 | F134: 19284 | G134: 16207 | H134: 12089 | L134: =Guatemala!D64 -> 29995 | M134: =Guatemala!E64 -> 27644 | N134: =Guatemala!F64 -> 19284 | O134: =Guatemala!G64 -> 16207 | P134: =Guatemala!H64 -> 12089 | R134: 29995 | S134: 27644 | T134: 19284 | U134: 16207 | V134: 12089
A135: 69 | B135: 69 | D135: 31393 | E135: 28895 | F135: 20147 | G135: 16974 | H135: 12647 | L135: =Guatemala!D65 -> 31393 | M135: =Guatemala!E65 -> 28895 | N135: =Guatemala!F65 -> 20147 | O135: =Guatemala!G65 -> 16974 | P135: =Guatemala!H65 -> 12647 | R135: 31393 | S135: 28895 | T135: 20147 | U135: 16974 | V135: 12647
A136: 70 | B136: 70 | D136: 31468 | E136: 29337 | F136: 20361 | G136: 17111 | H136: 12714 | L136: =Guatemala!D66 -> 31468 | M136: =Guatemala!E66 -> 29337 | N136: =Guatemala!F66 -> 20361 | O136: =Guatemala!G66 -> 17111 | P136: =Guatemala!H66 -> 12714 | R136: 31468 | S136: 29337 | T136: 20361 | U136: 17111 | V136: 12714
A137: 71 | B137: 71 | D137: 35368 | E137: 33086 | F137: 22940 | G137: 19279 | H137: 14324 | L137: =Guatemala!D67 -> 35368 | M137: =Guatemala!E67 -> 33086 | N137: =Guatemala!F67 -> 22940 | O137: =Guatemala!G67 -> 19279 | P137: =Guatemala!H67 -> 14324 | R137: 35368 | S137: 33086 | T137: 22940 | U137: 19279 | V137: 14324
A138: 72 | B138: 72 | D138: 39334 | E138: 36763 | F138: 25447 | G138: 21373 | H138: 15926 | L138: =Guatemala!D68 -> 39334 | M138: =Guatemala!E68 -> 36763 | N138: =Guatemala!F68 -> 25447 | O138: =Guatemala!G68 -> 21373 | P138: =Guatemala!H68 -> 15926 | R138: 39334 | S138: 36763 | T138: 25447 | U138: 21373 | V138: 15926
A139: 73 | B139: 73 | D139: 43305 | E139: 40434 | F139: 28032 | G139: 23539 | H139: 17533 | L139: =Guatemala!D69 -> 43305 | M139: =Guatemala!E69 -> 40434 | N139: =Guatemala!F69 -> 28032 | O139: =Guatemala!G69 -> 23539 | P139: =Guatemala!H69 -> 17533 | R139: 43305 | S139: 40434 | T139: 28032 | U139: 23539 | V139: 17533
A140: 74 | B140: 74 | D140: 47201 | E140: 44112 | F140: 30608 | G140: 25702 | H140: 19141 | L140: =Guatemala!D70 -> 47201 | M140: =Guatemala!E70 -> 44112 | N140: =Guatemala!F70 -> 30608 | O140: =Guatemala!G70 -> 25702 | P140: =Guatemala!H70 -> 19141 | R140: 47201 | S140: 44112 | T140: 30608 | U140: 25702 | V140: 19141
A141: 75 | B141: 75+ | D141: 51465 | E141: 48379 | F141: 33476 | G141: 28079 | H141: 20887 | L141: =Guatemala!D71 -> 51465 | M141: =Guatemala!E71 -> 48379 | N141: =Guatemala!F71 -> 33476 | O141: =Guatemala!G71 -> 28079 | P141: =Guatemala!H71 -> 20887 | R141: 51465 | S141: 48379 | T141: 33476 | U141: 28079 | V141: 20887
A142: 1 | B142: 1 Child | D142: 3235 | E142: 1916 | F142: 1581 | G142: 1331 | H142: 984 | L142: =Guatemala!D72 -> 3235 | M142: =Guatemala!E72 -> 1916 | N142: =Guatemala!F72 -> 1581 | O142: =Guatemala!G72 -> 1331 | P142: =Guatemala!H72 -> 984 | R142: 3235 | S142: 1916 | T142: 1581 | U142: 1331 | V142: 984
A143: 2 | B143: 2 Children | D143: 5518 | E143: 2874 | F143: 2512 | G143: 2098 | H143: 1539 | L143: =Guatemala!D73 -> 5518 | M143: =Guatemala!E73 -> 2874 | N143: =Guatemala!F73 -> 2512 | O143: =Guatemala!G73 -> 2098 | P143: =Guatemala!H73 -> 1539 | R143: 5518 | S143: 2874 | T143: 2512 | U143: 2098 | V143: 1539
A144: 3 | B144: 3+ Children | D144: =R144 -> 8087 | E144: =S144 -> 4122 | F144: =T144 -> 3660 | G144: =U144 -> 3074 | H144: =V144 -> 2310 | L144: =Guatemala!D74 -> 8087 | M144: =Guatemala!E74 -> 4122 | N144: =Guatemala!F74 -> 3660 | O144: =Guatemala!G74 -> 3074 | P144: =Guatemala!H74 -> 2310 | R144: 8087 | S144: 4122 | T144: 3660 | U144: 3074 | V144: 2310
A145: 1 | B145: Rider Comp. Maternidad | D145: =L145 -> 225 | E145: =M145 -> 225 | F145: 225 | G145: 225 | H145: 225 | L145: 225 | M145: 225 | N145: 225 | O145: 225 | P145: 225
A146: 1 | B146: Transplante de organos | D146: =L146 -> 300 | E146: =M146 -> 300 | F146: =N146 -> 300 | G146: =O146 -> 300 | H146: =P146 -> 300 | L146: 300 | M146: 300 | N146: 300 | O146: 300 | P146: 300
A149: TARIFAS SEMESTRALES
A151: EDAD | D151: SE2 | E151: SE3 | F151: SE4 | G151: SE5 | H151: SE6
A152: 18 | B152: 18-24 | D152: =D118*$G$2 -> 3585.45 | E152: =E118*$G$2 -> 2806.88 | F152: 2093.5 | G152: 1779.21 | H152: 1333.48
A153: 25 | B153: 25-29 | D153: =D119*$G$2 -> 3936.84 | E153: 3158.27 | F153: 2355.32 | G153: 1964.18 | H153: 1482.41
A154: 30 | B154: 30-34 | D154: =D120*$G$2 -> 4521.96 | E154: 3703.64 | F154: 2736.92 | G154: 2295.43 | H154: 1742.64
A155: 35 | B155: 35-39 | D155: =D121*$G$2 -> 4990.48 | E155: 4171.1 | F155: 3042.2 | G155: 2555.13 | H155: 1923.9
A156: 40 | B156: 40-44 | D156: =D122*$G$2 -> 5572.42 | E156: 4756.22 | F156: 3422.74 | G156: 2888.5 | H156: 2185.72
A157: 45 | B157: 45-49 | D157: =D123*$G$2 -> 6431.55 | E157: 5572.42 | F157: 3991.43 | G157: 3370.8 | H157: 2518.56
A158: 50 | B158: 50-54 | D158: =D124*$G$2 -> 7016.67 | E158: 6120.44 | F158: 4371.97 | G158: 3667.07 | H158: 2778.26
A159: 55 | B159: 55-59 | D159: =D125*$G$2 -> 8261.64 | E159: 7324.6 | F159: 5168.56 | G159: 4369.85 | H159: 3260.56
A160: 60 | B160: 60 | D160: =D126*$G$2 -> 8652.25 | E160: 7832.87 | F160: 5472.25 | G160: 4630.08 | H160: 3444.47
A161: 61 | B161: 61 | D161: =D127*$G$2 -> 9742.46 | E161: 8807.54 | F161: 6195.17 | G161: 5184.46 | H161: 3888.61
A162: 62 | B162: 62 | D162: =D128*$G$2 -> 10832.14 | E162: 9781.68 | F162: 6878.87 | G162: 5777 | H162: 4332.75
A163: 63 | B163: 63 | D163: =D129*$G$2 -> 11887.37 | E163: 10755.29 | F163: 7562.57 | G163: 6369.54 | H163: 4775.83
A164: 64 | B164: 64 | D164: =D130*$G$2 -> 12976.52 | E164: 11768.12 | F164: 8245.21 | G164: 6958.9 | H164: 5221.03
A165: 65 | B165: 65 | D165: =D131*$G$2 -> 13015.74 | E165: 11846.56 | F165: 8322.59 | G165: 6999.18 | H165: 5221.03
A166: 66 | B166: 66 | D166: =D132*$G$2 -> 13015.74 | E166: 11963.69 | F166: 8359.16 | G166: 7035.22 | H166: 5221.03
A167: 67 | B167: 67 | D167: =D133*$G$2 -> 14455.75 | E167: 13326.32 | F167: 9270.76 | G167: 7811.14 | H167: 5814.1
A168: 68 | B168: 68 | D168: =D134*$G$2 -> 15897.35 | E168: 14651.32 | F168: 10220.52 | G168: 8589.71 | H168: 6407.17
A169: 69 | B169: 69 | D169: =D135*$G$2 -> 16638.29 | E169: 15314.35 | F169: 10677.91 | G169: 8996.22 | H169: 6702.91
A170: 70 | B170: 70 | D170: =D136*$G$2 -> 16678.04 | E170: 15548.61 | F170: 10791.33 | G170: 9068.83 | H170: 6738.42
A171: 71 | B171: 71 | D171: =D137*$G$2 -> 18745.04 | E171: 17535.58 | F171: 12158.2 | G171: 10217.87 | H171: 7591.72
A172: 72 | B172: 72 | D172: =D138*$G$2 -> 20847.02 | E172: 19484.39 | F172: 13486.91 | G172: 11327.69 | H172: 8440.78
A173: 73 | B173: 73 | D173: =D139*$G$2 -> 22951.65 | E173: 21430.02 | F173: 14856.96 | G173: 12475.67 | H173: 9292.49
A174: 74 | B174: 74 | D174: =D140*$G$2 -> 25016.53 | E174: 23379.36 | F174: 16222.24 | G174: 13622.06 | H174: 10144.73
A175: 75 | B175: 75+ | D175: =D141*$G$2 -> 27276.45 | E175: 25640.87 | F175: 17742.28 | G175: 14881.87 | H175: 11070.11
A176: 1 | B176: 1 Child | D176: =D142*$G$2 -> 1714.55 | E176: 1015.48 | F176: 837.93 | G176: 705.43 | H176: 521.52
A177: 2 | B177: 2 Children | D177: =D143*$G$2 -> 2924.54 | E177: 1523.22 | F177: 1331.36 | G177: 1111.94 | H177: 815.67
A178: 3 | B178: 3+ Children | D178: =D144*$G$2 -> 4286.11 | E178: 2184.66 | F178: 1939.8 | G178: 1629.22 | H178: 1224.3
A179: 1 | B179: Rider Comp. Maternidad | D179: =D145*$G$2 -> 119.25 | E179: 119.25 | F179: 119.25 | G179: 119.25 | H179: 119.25
A180: 1 | B180: Transplante de organos | D180: =D146*$G$2 -> 159 | E180: 159 | F180: 159 | G180: 159 | H180: 159
A184: TARIFAS TRIMESTRALES
A186: EDAD | D186: SE2 | E186: SE3 | F186: SE4 | G186: SE5 | H186: SE6
A187: 18 | B187: 18-24 | D187: =D118*$G$3 -> 1860.375 | E187: =E118*$G$3 -> 1456.4 | F187: 1086.25 | G187: 923.175 | H187: 691.9
A188: 25 | B188: 25-29 | D188: =D119*$G$3 -> 2042.7 | E188: 1638.725 | F188: 1222.1 | G188: 1019.15 | H188: 769.175
A189: 30 | B189: 30-34 | D189: =D120*$G$3 -> 2346.3 | E189: 1921.7 | F189: 1420.1 | G189: 1191.025 | H189: 904.2
A190: 35 | B190: 35-39 | D190: =D121*$G$3 -> 2589.4 | E190: 2164.25 | F190: 1578.5 | G190: 1325.775 | H190: 998.25
A191: 40 | B191: 40-44 | D191: =D122*$G$3 -> 2891.35 | E191: 2467.85 | F191: 1775.95 | G191: 1498.75 | H191: 1134.1
A192: 45 | B192: 45-49 | D192: =D123*$G$3 -> 3337.125 | E192: 2891.35 | F192: 2071.025 | G192: 1749 | H192: 1306.8
A193: 50 | B193: 50-54 | D193: =D124*$G$3 -> 3640.725 | E193: 3175.7 | F193: 2268.475 | G193: 1902.725 | H193: 1441.55
A194: 55 | B194: 55-59 | D194: =D125*$G$3 -> 4286.7 | E194: 3800.5 | F194: 2681.8 | G194: 2267.375 | H194: 1691.8
A195: 60 | B195: 60 | D195: =D126*$G$3 -> 4489.375 | E195: 4064.225 | F195: 2839.375 | G195: 2402.4 | H195: 1787.225
A196: 61 | B196: 61 | D196: =D127*$G$3 -> 5055.05 | E196: 4569.95 | F196: 3214.475 | G196: 2690.05 | H196: 2017.675
A197: 62 | B197: 62 | D197: =D128*$G$3 -> 5620.45 | E197: 5075.4 | F197: 3569.225 | G197: 2997.5 | H197: 2248.125
A198: 63 | B198: 63 | D198: =D129*$G$3 -> 6167.975 | E198: 5580.575 | F198: 3923.975 | G198: 3304.95 | H198: 2478.025
A199: 64 | B199: 64 | D199: =D130*$G$3 -> 6733.1 | E199: 6106.1 | F199: 4278.175 | G199: 3610.75 | H199: 2709.025
A200: 65 | B200: 65 | D200: =D131*$G$3 -> 6753.45 | E200: 6146.8 | F200: 4318.325 | G200: 3631.65 | H200: 2709.025
A201: 66 | B201: 66 | D201: =D132*$G$3 -> 6753.45 | E201: 6207.575 | F201: 4337.3 | G201: 3650.35 | H201: 2709.025
A202: 67 | B202: 67 | D202: =D133*$G$3 -> 7500.625 | E202: 6914.6 | F202: 4810.3 | G202: 4052.95 | H202: 3016.75
A203: 68 | B203: 68 | D203: =D134*$G$3 -> 8248.625 | E203: 7602.1 | F203: 5303.1 | G203: 4456.925 | H203: 3324.475
A204: 69 | B204: 69 | D204: =D135*$G$3 -> 8633.075 | E204: 7946.125 | F204: 5540.425 | G204: 4667.85 | H204: 3477.925
A205: 70 | B205: 70 | D205: =D136*$G$3 -> 8653.7 | E205: 8067.675 | F205: 5599.275 | G205: 4705.525 | H205: 3496.35
A206: 71 | B206: 71 | D206: =D137*$G$3 -> 9726.2 | E206: 9098.65 | F206: 6308.5 | G206: 5301.725 | H206: 3939.1
A207: 72 | B207: 72 | D207: =D138*$G$3 -> 10816.85 | E207: 10109.825 | F207: 6997.925 | G207: 5877.575 | H207: 4379.65
A208: 73 | B208: 73 | D208: =D139*$G$3 -> 11908.875 | E208: 11119.35 | F208: 7708.8 | G208: 6473.225 | H208: 4821.575
A209: 74 | B209: 74 | D209: =D140*$G$3 -> 12980.275 | E209: 12130.8 | F209: 8417.2 | G209: 7068.05 | H209: 5263.775
A210: 75 | B210: 75+ | D210: =D141*$G$3 -> 14152.875 | E210: 13304.225 | F210: 9205.9 | G210: 7721.725 | H210: 5743.925
A211: 1 | B211: 1 Child | D211: =D142*$G$3 -> 889.625 | E211: 526.9 | F211: 434.775 | G211: 366.025 | H211: 270.6
A212: 2 | B212: 2 Children | D212: =D143*$G$3 -> 1517.45 | E212: 790.35 | F212: 690.8 | G212: 576.95 | H212: 423.225
A213: 3 | B213: 3+ Children | D213: =D144*$G$3 -> 2223.925 | E213: 1133.55 | F213: 1006.5 | G213: 845.35 | H213: 635.25
A214: 1 | B214: Rider Comp. Maternidad | D214: =D145*$G$3 -> 61.875 | E214: 61.875 | F214: 61.875 | G214: 61.875 | H214: 61.875
A215: 1 | B215: Transplante de organos | D215: =D146*$G$3 -> 82.5 | E215: 82.5 | F215: 82.5 | G215: 82.5 | H215: 82.5
A220: BUPA ESSENTIAL CARE
A221: TARIFAS ANUALES
A223: EDAD | C223: ET1 | D223: ET2 | E223: ET3 | F223: ET4 | G223: ET5 | H223: ET6
A224: 18 | C224: =R224 -> 1596 | D224: =S224 -> 1535 | E224: 1423 | F224: 1009 | G224: 760 | H224: 535 | K224: =Guatemala!C86 -> 1596 | L224: =Guatemala!D86 -> 1535 | M224: =Guatemala!E86 -> 1423 | N224: =Guatemala!F86 -> 1009 | O224: =Guatemala!G86 -> 760 | P224: =Guatemala!H86 -> 535 | R224: =K224*M2 -> 1596 | S224: =L224*$O$2 -> 1535 | T224: 1423 | U224: 1009 | V224: 760 | W224: 535
A225: 19 | C225: =R225 -> 1627 | D225: =S225 -> 1565 | E225: =T225 -> 1451 | F225: =U225 -> 1027 | G225: =V225 -> 760 | H225: =W225 -> 552 | K225: =Guatemala!C87 -> 1627 | L225: =Guatemala!D87 -> 1565 | M225: =Guatemala!E87 -> 1451 | N225: =Guatemala!F87 -> 1027 | O225: =Guatemala!G87 -> 760 | P225: =Guatemala!H87 -> 552 | R225: =K225*$O$2 -> 1627 | S225: =L225*$O$2 -> 1565 | T225: =M225*$O$2 -> 1451 | U225: =N225*$O$2 -> 1027 | V225: =O225*$O$2 -> 760 | W225: =P225*$O$2 -> 552
A226: 20 | C226: 1655 | D226: 1593 | E226: 1476 | F226: 1046 | G226: 781 | H226: 552 | K226: =Guatemala!C88 -> 1655 | L226: =Guatemala!D88 -> 1593 | M226: =Guatemala!E88 -> 1476 | N226: =Guatemala!F88 -> 1046 | O226: =Guatemala!G88 -> 781 | P226: =Guatemala!H88 -> 552 | R226: 1655 | S226: 1593 | T226: 1476 | U226: 1046 | V226: 781 | W226: 552
A227: 21 | C227: 1686 | D227: 1621 | E227: 1503 | F227: 1064 | G227: 799 | H227: 572 | K227: =Guatemala!C89 -> 1686 | L227: =Guatemala!D89 -> 1621 | M227: =Guatemala!E89 -> 1503 | N227: =Guatemala!F89 -> 1064 | O227: =Guatemala!G89 -> 799 | P227: =Guatemala!H89 -> 572 | R227: 1686 | S227: 1621 | T227: 1503 | U227: 1064 | V227: 799 | W227: 572
... 632 more rows

Sheet Guatemala (hidden)
K1: D1 | L1: D2 | M1: D3 | N1: D4 | O1: D5 | P1: D6
B2: REGIÓN | C2: ='INGRESO DE DATOS'!W14 -> Guatemala | E2: FACTOR SEMESTRAL : | G2: 0.53 | I2: NEW BUSINESS DISCUOUNTS | K2: ='INGRESO DE DATOS'!O42 -> 1 | L2: ='INGRESO DE DATOS'!P42 -> 1 | M2: ='INGRESO DE DATOS'!Q42 -> 1 | N2: ='INGRESO DE DATOS'!R42 -> 1 | O2: ='INGRESO DE DATOS'!S42 -> 1 | P2: ='INGRESO DE DATOS'!T42 -> 0.85
A5: BUPA COMPLETE CARE
A6: TARIFAS ANUALES
A8: EDAD | C8: CW1 | D8: CW2 | E8: CW3 | F8: CW4 | G8: CW5 | H8: CW6
A9: 18 | B9: 18-24 | D9: 13833 | E9: 9474 | F9: 6651 | G9: 4591 | H9: 3509
A10: 25 | B10: 25-29 | D10: 14493 | E10: 10520 | F10: 7390 | G10: 5036 | H10: 3870
A11: 30 | B11: 30-34 | D11: 15160 | E11: 11273 | F11: 8222 | G11: 6121 | H11: 4682
A12: 35 | B12: 35-39 | D12: 16961 | E12: 12602 | F12: 9233 | G12: 6837 | H12: 5221
A13: 40 | B13: 40-44 | D13: 19702 | E13: 13833 | F13: 10252 | G13: 7556 | H13: 5757
A14: 45 | B14: 45-49 | D14: 21980 | E14: 15443 | F14: 11448 | G14: 8456 | H14: 6477
A15: 50 | B15: 50-54 | D15: 28702 | E15: 20369 | F15: 15052 | G15: 12052 | H15: 9267
A16: 55 | B16: 55-59 | D16: 30595 | E16: 21693 | F16: 16066 | G16: 12859 | H16: 9804
A17: 60 | B17: 60 | D17: 33250 | E17: 23590 | F17: 18281 | G17: 15287 | H17: 12319
A18: 61 | B18: 61 | D18: 35711 | E18: 25298 | F18: 19573 | G18: 16457 | H18: 13221
A19: 62 | B19: 62 | D19: 39121 | E19: 27663 | F19: 21422 | G19: 17981 | H19: 14476
A20: 63 | B20: 63 | D20: 41584 | E20: 29460 | F20: 22807 | G20: 19155 | H20: 15376
A21: 64 | B21: 64 | D21: 44994 | E21: 31830 | F21: 24654 | G21: 20683 | H21: 16636
A22: 65 | B22: 65 | D22: 58826 | E22: 41584 | F22: 31206 | G22: 27605 | H22: 23466
A23: 66 | B23: 66 | D23: 68390 | E23: 48312 | F23: 36280 | G23: 32102 | H23: 27242
A24: 67 | B24: 67 | D24: 74642 | E24: 52764 | F24: 39602 | G24: 35066 | H24: 29762
A25: 68 | B25: 68 | D25: 82692 | E25: 58443 | F25: 43850 | G25: 38841 | H25: 32999
A26: 69 | B26: 69 | D26: 90934 | E26: 64225 | F26: 48283 | G26: 42707 | H26: 36231
A27: 70 | B27: 70 | D27: 111959 | E27: 78238 | F27: 56771 | G27: 49720 | H27: 42617
A28: 71 | B28: 71 | D28: 116317 | E28: 81274 | F28: 58992 | G28: 51699 | H28: 44326
A29: 72 | B29: 72 | D29: 119632 | E29: 83640 | F29: 60651 | G29: 53135 | H29: 45585
A30: 73 | B30: 73 | D30: 123990 | E30: 86674 | F30: 62871 | G30: 55111 | H30: 47292
A31: 74 | B31: 74 | D31: 126264 | E31: 88187 | F31: 64069 | G31: 56102 | H31: 48103
A32: 75 | B32: 75+ | D32: 131756 | E32: 92067 | F32: 66833 | G32: 58531 | H32: 50168
A33: 1 | B33: 1 Child | D33: 4836 | E33: 3508 | F33: 2683 | G33: 2252 | H33: 1621
A34: 2 | B34: 2 Children | D34: 7676 | E34: 5592 | F34: 4253 | G34: 3509 | H34: 2613
A35: 3 | B35: 3+ Children | D35: 11177 | E35: 8149 | F35: 6284 | G35: 5126 | H35: 3784
A36: 1 | B36: Rider Comp. Maternidad | D36: 0 | E36: 0 | F36: 225 | G36: 225 | H36: 225
A37: 1 | B37: Transplante de organos | D37: 0 | E37: 0 | F37: 0 | G37: 0 | H37: 0
A44: BUPA SECURE CARE
A45: TARIFAS ANUALES
A47: EDAD | D47: SE2 | E47: SE3 | F47: SE4 | G47: SE5 | H47: SE6
A48: 18 | B48: 18-24 | D48: 6765 | E48: 5296 | F48: 3950 | G48: 3357 | H48: 2516
A49: 25 | B49: 25-29 | D49: 7428 | E49: 5959 | F49: 4444 | G49: 3706 | H49: 2797
A50: 30 | B50: 30-34 | D50: 8532 | E50: 6988 | F50: 5164 | G50: 4331 | H50: 3288
A51: 35 | B51: 35-39 | D51: 9416 | E51: 7870 | F51: 5740 | G51: 4821 | H51: 3630
A52: 40 | B52: 40-44 | D52: 10514 | E52: 8974 | F52: 6458 | G52: 5450 | H52: 4124
A53: 45 | B53: 45-49 | D53: 12135 | E53: 10514 | F53: 7531 | G53: 6360 | H53: 4752
A54: 50 | B54: 50-54 | D54: 13239 | E54: 11548 | F54: 8249 | G54: 6919 | H54: 5242
A55: 55 | B55: 55-59 | D55: 15588 | E55: 13820 | F55: 9752 | G55: 8245 | H55: 6152
A56: 60 | B56: 60 | D56: 16325 | E56: 14779 | F56: 10325 | G56: 8736 | H56: 6499
A57: 61 | B57: 61 | D57: 18382 | E57: 16618 | F57: 11689 | G57: 9782 | H57: 7337
A58: 62 | B58: 62 | D58: 20438 | E58: 18456 | F58: 12979 | G58: 10900 | H58: 8175
A59: 63 | B59: 63 | D59: 22429 | E59: 20293 | F59: 14269 | G59: 12018 | H59: 9011
A60: 64 | B60: 64 | D60: 24484 | E60: 22204 | F60: 15557 | G60: 13130 | H60: 9851
A61: 65 | B61: 65 | D61: 24558 | E61: 22352 | F61: 15703 | G61: 13206 | H61: 9851
A62: 66 | B62: 66 | D62: 24558 | E62: 22573 | F62: 15772 | G62: 13274 | H62: 9851
A63: 67 | B63: 67 | D63: 27275 | E63: 25144 | F63: 17492 | G63: 14738 | H63: 10970
A64: 68 | B64: 68 | D64: 29995 | E64: 27644 | F64: 19284 | G64: 16207 | H64: 12089
A65: 69 | B65: 69 | D65: 31393 | E65: 28895 | F65: 20147 | G65: 16974 | H65: 12647
A66: 70 | B66: 70 | D66: 31468 | E66: 29337 | F66: 20361 | G66: 17111 | H66: 12714
A67: 71 | B67: 71 | D67: 35368 | E67: 33086 | F67: 22940 | G67: 19279 | H67: 14324
A68: 72 | B68: 72 | D68: 39334 | E68: 36763 | F68: 25447 | G68: 21373 | H68: 15926
A69: 73 | B69: 73 | D69: 43305 | E69: 40434 | F69: 28032 | G69: 23539 | H69: 17533
A70: 74 | B70: 74 | D70: 47201 | E70: 44112 | F70: 30608 | G70: 25702 | H70: 19141
A71: 75 | B71: 75+ | D71: 51465 | E71: 48379 | F71: 33476 | G71: 28079 | H71: 20887
A72: 1 | B72: 1 Child | D72: 3235 | E72: 1916 | F72: 1581 | G72: 1331 | H72: 984
A73: 2 | B73: 2 Children | D73: 5518 | E73: 2874 | F73: 2512 | G73: 2098 | H73: 1539
A74: 3 | B74: 3+ Children | D74: 8087 | E74: 4122 | F74: 3660 | G74: 3074 | H74: 2310
A75: 1 | B75: Rider Comp. Maternidad | D75: 225 | E75: 225 | F75: 225 | G75: 225 | H75: 225
A76: 1 | B76: Transplante de organos | D76: 300 | E76: 300 | F76: 300 | G76: 300 | H76: 300
A82: BUPA ESSENTIAL CARE
A83: TARIFAS ANUALES
A85: EDAD | C85: ET1 | D85: ET2 | E85: ET3 | F85: ET4 | G85: ET5 | H85: ET6
A86: 18 | C86: 1596 | D86: 1535 | E86: 1423 | F86: 1009 | G86: 760 | H86: 535
A87: 19 | C87: 1627 | D87: 1565 | E87: 1451 | F87: 1027 | G87: 760 | H87: 552
A88: 20 | C88: 1655 | D88: 1593 | E88: 1476 | F88: 1046 | G88: 781 | H88: 552
A89: 21 | C89: 1686 | D89: 1621 | E89: 1503 | F89: 1064 | G89: 799 | H89: 572
A90: 22 | C90: 1717 | D90: 1651 | E90: 1531 | F90: 1085 | G90: 818 | H90: 572
A91: 23 | C91: 1744 | D91: 1678 | E91: 1555 | F91: 1102 | G91: 818 | H91: 592
A92: 24 | C92: 1807 | D92: 1738 | E92: 1610 | F92: 1142 | G92: 837 | H92: 609
A93: 25 | C93: 1836 | D93: 1765 | E93: 1637 | F93: 1160 | G93: 857 | H93: 609
A94: 26 | C94: 1865 | D94: 1795 | E94: 1664 | F94: 1179 | G94: 875 | H94: 629
A95: 27 | C95: 1898 | D95: 1825 | E95: 1691 | F95: 1198 | G95: 894 | H95: 629
A96: 28 | C96: 1924 | D96: 1851 | E96: 1716 | F96: 1216 | G96: 914 | H96: 647
A97: 29 | C97: 1986 | D97: 1910 | E97: 1771 | F97: 1255 | G97: 932 | H97: 665
A98: 30 | C98: 2048 | D98: 1969 | E98: 1825 | F98: 1293 | G98: 952 | H98: 686
A99: 31 | C99: 2078 | D99: 1998 | E99: 1853 | F99: 1313 | G99: 971 | H99: 686
A100: 32 | C100: 2138 | D100: 2056 | E100: 1906 | F100: 1351 | G100: 989 | H100: 702
A101: 33 | C101: 2198 | D101: 2113 | E101: 1959 | F101: 1387 | G101: 1009 | H101: 723
A102: 34 | C102: 2259 | D102: 2172 | E102: 2014 | F102: 1425 | G102: 1046 | H102: 743
A103: 35 | C103: 2317 | D103: 2227 | E103: 2066 | F103: 1462 | G103: 1064 | H103: 760
A104: 36 | C104: 2379 | D104: 2287 | E104: 2121 | F104: 1501 | G104: 1102 | H104: 781
A105: 37 | C105: 2438 | D105: 2344 | E105: 2173 | F105: 1538 | G105: 1121 | H105: 799
A106: 38 | C106: 2530 | D106: 2433 | E106: 2256 | F106: 1597 | G106: 1160 | H106: 818
A107: 39 | C107: 2618 | D107: 2517 | E107: 2334 | F107: 1653 | G107: 1198 | H107: 837
A108: 40 | C108: 2680 | D108: 2576 | E108: 2390 | F108: 1691 | G108: 1216 | H108: 857
A109: 41 | C109: 2769 | D109: 2663 | E109: 2469 | F109: 1748 | G109: 1255 | H109: 875
A110: 42 | C110: 2858 | D110: 2748 | E110: 2548 | F110: 1804 | G110: 1293 | H110: 894
A111: 43 | C111: 2947 | D111: 2836 | E111: 2628 | F111: 1861 | G111: 1329 | H111: 932
A112: 44 | C112: 3068 | D112: 2951 | E112: 2734 | F112: 1937 | G112: 1370 | H112: 952
A113: 45 | C113: 3157 | D113: 3036 | E113: 2816 | F113: 1994 | G113: 1409 | H113: 989
A114: 46 | C114: 3249 | D114: 3124 | E114: 2897 | F114: 2051 | G114: 1444 | H114: 1009
A115: 47 | C115: 3369 | D115: 3240 | E115: 3003 | F115: 2127 | G115: 1482 | H115: 1027
A116: 48 | C116: 3519 | D116: 3385 | E116: 3138 | F116: 2222 | G116: 1538 | H116: 1064
A117: 49 | C117: 3640 | D117: 3502 | E117: 3245 | F117: 2299 | G117: 1597 | H117: 1102
A118: 50 | C118: 3789 | D118: 3645 | E118: 3379 | F118: 2393 | G118: 1653 | H118: 1121
A119: 51 | C119: 3942 | D119: 3790 | E119: 3515 | F119: 2489 | G119: 1710 | H119: 1160
A120: 52 | C120: 4061 | D120: 3905 | E120: 3620 | F120: 2564 | G120: 1766 | H120: 1198
A121: 53 | C121: 4241 | D121: 4078 | E121: 3781 | F121: 2676 | G121: 1825 | H121: 1237
A122: 54 | C122: 4423 | D122: 4253 | E122: 3943 | F122: 2792 | G122: 1898 | H122: 1255 | I122: CR3 | L122: CR4 | O122: CR5
A123: 55 | C123: 4600 | D123: 4425 | E123: 4101 | F123: 2904 | G123: 1956 | H123: 1293 | I123: INDIVIDUAL | J123: 2 PERSONAS | K123: FAMILIAR | L123: INDIVIDUAL | M123: 2 PERSONAS | N123: FAMILIAR | O123: INDIVIDUAL | P123: 2 PERSONAS | Q123: FAMILIAR
A124: 56 | C124: 4783 | D124: 4599 | E124: 4265 | F124: 3020 | G124: 2032 | H124: 1329 | I124: =AU124 -> 0 | J124: 0 | K124: 0 | L124: 0 | M124: 0 | N124: 0 | O124: 0 | P124: 0 | Q124: 0
A125: 57 | C125: 4961 | D125: 4771 | E125: 4423 | F125: 3132 | G125: 2109 | H125: 1370 | I125: 0 | J125: 0 | K125: 0 | L125: 0 | M125: 0 | N125: 0 | O125: 0 | P125: 0 | Q125: 0
A126: 58 | C126: 5234 | D126: 5033 | E126: 4666 | F126: 3304 | G126: 2185 | H126: 1409
A127: 59 | C127: 5474 | D127: 5264 | E127: 4880 | F127: 3456 | G127: 2279 | H127: 1444
A128: 60 | C128: 5713 | D128: 5494 | E128: 5093 | F128: 3607 | G128: 2375 | H128: 1501
A129: 61 | C129: 6045 | D129: 5813 | E129: 5389 | F129: 3817 | G129: 2489 | H129: 1538
A130: 62 | C130: 6496 | D130: 6247 | E130: 5791 | F130: 4100 | G130: 2660 | H130: 1614
A131: 63 | C131: 7129 | D131: 6854 | E131: 6354 | F131: 4500 | G131: 2904 | H131: 1691
A132: 64 | C132: 7999 | D132: 7693 | E132: 7131 | F132: 5049 | G132: 3248 | H132: 1804
A133: 65 | C133: 9112 | D133: 8762 | E133: 8123 | F133: 5751 | G133: 3684 | H133: 1976
A134: 66 | C134: 10464 | D134: 10063 | E134: 9329 | F134: 6605 | G134: 4196 | H134: 2185
A135: 67 | C135: 12029 | D135: 11568 | E135: 10723 | F135: 7593 | G135: 4785 | H135: 2469
A136: 68 | C136: 13681 | D136: 13157 | E136: 12197 | F136: 8635 | G136: 5429 | H136: 2772
A137: 69 | C137: 15423 | D137: 14833 | E137: 13750 | F137: 9736 | G137: 6112 | H137: 3115
A138: 70 | C138: 17287 | D138: 16625 | E138: 15412 | F138: 10912 | G138: 6872 | H138: 3475
A139: 71 | C139: 19242 | D139: 18504 | E139: 17154 | F139: 12145 | G139: 7668 | H139: 3855
A140: 72 | C140: 21286 | D140: 20470 | E140: 18976 | F140: 13436 | G140: 8521 | H140: 4253
A141: 73 | C141: 23451 | D141: 22554 | E141: 20907 | F141: 14803 | G141: 9432 | H141: 4671
A142: 74 | C142: 25705 | D142: 24721 | E142: 22916 | F142: 16226 | G142: 10401 | H142: 5088
A143: 75 | C143: 28049 | D143: 26975 | E143: 25006 | F143: 17705 | G143: 11426 | H143: 5524
A144: 76 | C144: 30486 | D144: 29318 | E144: 27179 | F144: 19243 | G144: 12507 | H144: 5979
A145: 77 | C145: 33009 | D145: 31746 | E145: 29428 | F145: 20836 | G145: 13645 | H145: 6453
A146: 78 | C146: 35655 | D146: 34290 | E146: 31787 | F146: 22506 | G146: 14841 | H146: 6929
A147: 79 | C147: 38390 | D147: 36921 | E147: 34225 | F147: 24232 | G147: 16074 | H147: 7441
A148: 80 | B148: o mas | C148: 41218 | D148: 39639 | E148: 36745 | F148: 26018 | G148: 17384 | H148: 7936
A149: 1 | B149: Hijo | C149: 693 | D149: 666 | E149: 619 | F149: 438 | G149: 366 | H149: 288
A150: 2 | B150: Hijos | C150: 1086 | D150: 1045 | E150: 968 | F150: 686 | G150: 572 | H150: 452
A151: 3 | B151: Hijos o más | C151: 1566 | D151: 1506 | E151: 1396 | F151: 989 | G151: 825 | H151: 650
A152: 1 | B152: Rider Comp. Maternidad | C152: 225 | D152: 225 | E152: 225 | F152: 0 | G152: 0 | H152: 0
A153: 1 | B153: Transplante de organos | C153: 300 | D153: 300 | E153: 300 | F153: 300 | G153: 300 | H153: 300
A160: BUPA CLASSIC CARE
A161: TARIFAS ANUALES
A163: EDAD | D163: ET2 | E163: ET3 | F163: ET4 | G163: ET5 | H163: ET6
A164: 18 | D164: 3496 | E164: 2709 | F164: 1771 | G164: 1300 | H164: 914
A165: 19 | D165: 3566 | E165: 2744 | F165: 1804 | G165: 1300 | H165: 942
A166: 20 | D166: 3597 | E166: 2811 | F166: 1838 | G166: 1335 | H166: 942
A167: 21 | D167: 3667 | E167: 2884 | F167: 1871 | G167: 1366 | H167: 977
A168: 22 | D168: 3739 | E168: 2951 | F168: 1905 | G168: 1399 | H168: 977
A169: 23 | D169: 3771 | E169: 2982 | F169: 1935 | G169: 1399 | H169: 1012
A170: 24 | D170: 3838 | E170: 3054 | F170: 2005 | G170: 1431 | H170: 1040
A171: 25 | D171: 3908 | E171: 3120 | F171: 2037 | G171: 1465 | H171: 1040
A172: 26 | D172: 3978 | E172: 3189 | F172: 2070 | G172: 1495 | H172: 1075
A173: 27 | D173: 4011 | E173: 3256 | F173: 2106 | G173: 1529 | H173: 1075
A174: 28 | D174: 4112 | E174: 3326 | F174: 2136 | G174: 1560 | H174: 1106
A175: 29 | D175: 4182 | E175: 3395 | F175: 2203 | G175: 1592 | H175: 1136
A176: 30 | D176: 4285 | E176: 3496 | F176: 2271 | G176: 1627 | H176: 1172
A177: 31 | D177: 4352 | E177: 3566 | F177: 2306 | G177: 1661 | H177: 1172
A178: 32 | D178: 4455 | E178: 3667 | F178: 2372 | G178: 1690 | H178: 1201
A179: 33 | D179: 4559 | E179: 3771 | F179: 2438 | G179: 1724 | H179: 1238
A180: 34 | D180: 4662 | E180: 3877 | F180: 2505 | G180: 1788 | H180: 1269
A181: 35 | D181: 4801 | E181: 3978 | F181: 2571 | G181: 1820 | H181: 1300
A182: 36 | D182: 4901 | E182: 4080 | F182: 2638 | G182: 1883 | H182: 1335
A183: 37 | D183: 5004 | E183: 4182 | F183: 2705 | G183: 1917 | H183: 1366
A184: 38 | D184: 5141 | E184: 4319 | F184: 2807 | G184: 1981 | H184: 1399
A185: 39 | D185: 5279 | E185: 4455 | F185: 2903 | G185: 2050 | H185: 1431
A186: 40 | D186: 5449 | E186: 4559 | F186: 2973 | G186: 2078 | H186: 1465
A187: 41 | D187: 5585 | E187: 4698 | F187: 3072 | G187: 2145 | H187: 1495
A188: 42 | D188: 5724 | E188: 4831 | F188: 3170 | G188: 2210 | H188: 1529
A189: 43 | D189: 5896 | E189: 5004 | F189: 3270 | G189: 2274 | H189: 1592
A190: 44 | D190: 6066 | E190: 5141 | F190: 3403 | G190: 2341 | H190: 1627
A191: 45 | D191: 6236 | E191: 5312 | F191: 3503 | G191: 2407 | H191: 1690
A192: 46 | D192: 6410 | E192: 5484 | F192: 3604 | G192: 2470 | H192: 1724
A193: 47 | D193: 6580 | E193: 5622 | F193: 3738 | G193: 2535 | H193: 1756
A194: 48 | D194: 6853 | E194: 5860 | F194: 3904 | G194: 2632 | H194: 1820
A195: 49 | D195: 7093 | E195: 6066 | F195: 4039 | G195: 2732 | H195: 1883
A196: 50 | D196: 7334 | E196: 6272 | F196: 4206 | G196: 2826 | H196: 1917
A197: 51 | D197: 7573 | E197: 6509 | F197: 4374 | G197: 2924 | H197: 1981
A198: 52 | D198: 7813 | E198: 6716 | F198: 4505 | G198: 3021 | H198: 2050
A199: 53 | D199: 8122 | E199: 6990 | F199: 4705 | G199: 3119 | H199: 2113
A200: 54 | D200: 8429 | E200: 7266 | F200: 4907 | G200: 3245 | H200: 2145
A201: 55 | D201: 8738 | E201: 7541 | F201: 5105 | G201: 3345 | H201: 2210
A202: 56 | D202: 9045 | E202: 7813 | F202: 5306 | G202: 3474 | H202: 2274
A203: 57 | D203: 9355 | E203: 8086 | F203: 5505 | G203: 3606 | H203: 2341
A204: 58 | D204: 9766 | E204: 8429 | F204: 5806 | G204: 3735 | H204: 2407
A205: 59 | D205: 10141 | E205: 8770 | F205: 6073 | G205: 3896 | H205: 2470
A206: 60 | D206: 10555 | E206: 9150 | F206: 6339 | G206: 4060 | H206: 2567
A207: 61 | D207: 11136 | E207: 9627 | F207: 6707 | G207: 4255 | H207: 2632
A208: 62 | D208: 11889 | E208: 10311 | F208: 7206 | G208: 4548 | H208: 2760
A209: 63 | D209: 13017 | E209: 11274 | F209: 7908 | G209: 4967 | H209: 2893
A210: 64 | D210: 14559 | E210: 12610 | F210: 8873 | G210: 5552 | H210: 3085
A211: 65 | D211: 16548 | E211: 14323 | F211: 10108 | G211: 6297 | H211: 3378
A212: 66 | D212: 18980 | E212: 16479 | F212: 11608 | G212: 7174 | H212: 3735
A213: 67 | D213: 21721 | E213: 18908 | F213: 13344 | G213: 8181 | H213: 4221
A214: 68 | D214: 24664 | E214: 21548 | F214: 15178 | G214: 9285 | H214: 4741
A215: 69 | D215: 27748 | E215: 24324 | F215: 17111 | G215: 10450 | H215: 5326
A216: 70 | D216: 30934 | E216: 27162 | F216: 19177 | G216: 11752 | H216: 5942
A217: 71 | D217: 34222 | E217: 30142 | F217: 21346 | G217: 13111 | H217: 6591
A218: 72 | D218: 37609 | E218: 33158 | F218: 23614 | G218: 14569 | H218: 7272
A219: 73 | D219: 41070 | E219: 36275 | F219: 26016 | G219: 16129 | H219: 7986
A220: 74 | D220: 44563 | E220: 39462 | F220: 28516 | G220: 17785 | H220: 8699
A221: 75 | D221: 48158 | E221: 42679 | F221: 31117 | G221: 19538 | H221: 9446
A222: 76 | D222: 51791 | E222: 45966 | F222: 33820 | G222: 21387 | H222: 10224
A223: 77 | D223: 55488 | E223: 49288 | F223: 36619 | G223: 23333 | H223: 11033
... 81 more rows
